Workbook

Sheet Návod
A2: Účel souboru:
A3: Obecně slouží soubor jako přehled veškerých faktur jak vystavených tak obdržených,
A4: z nichž následně jsou vymodelovány jednotlivé sledovací sestavy
A5: list "faktury" slouží pro import dat z jednotlivých faktur pomocí předepsaného formuláře
A6: list "Výnosy&náklady" slouží pro sledování výnosů a nákladů
A7: list "plán_Výnosy&náklady" slouží pro porovnání plánovaných a reálných výnosů a nákladů
A8: list "Příjmy&Výdaje" slouží pro sledování cash flow zaplacených faktur
A9: list "plán_Příjmy&Výdaje" slouží pro sledování plánu CF na základě splatností jednotlivých faktur
A10: list "porovnání plán&skut (P&V)" slouží pro porovnání plánovaného a skutečného cash flow
A15: Vkládání dat
A16: 1) Na listu "faktury" klikneme na tlačítko "Přidat fakturu".
A17: 2) V zobrazeném formuláři vybereme zda se jedná o fakturu přijatou či vydanou.
A18: 2) Vyplníme formulář pro přidání faktury. Pole "Doba splatnosti" se vyplní automaticky.
A19: 3) Fakturu přidáme pomocí tlačítka "Přidat fakturu".
A20: 4) Zkontrolujeme vloženou fakturu.
A22: Editace vložených faktur
A23: 1) Na listu "faktury" klikneme na tlačítko "Upravit fakturu".
A24: 2) Formulář automaticky obsahuje fakturu, která se nachází v řádku aktivní buňky.
A25: 3) Vyberem zda se jedná o fakturu přijatou či vydanou.
A26: 4) Provedené úpravy potvrdíme tlačítkem "Upravit".
A28: Označování zaplacených faktur
A29: 1) na listu "faktury" vložíme do sloupce Zaplaceno k faktuře datum zaplacení
A31: Aktualizace doby splatnosti:
A32: 1) na listu "faktury" klikneme na tlačítko "Aaktualizovat datum".
A33: 2) Program automaticky provede výpočet počtu dní do splatnosti jako rozdíl
A34: mezi datem zdanitelného plnění a datem splatnosti.
A35: 3) V případě vyplnění sloupce zaplacení faktury bude ve sloupci "Doba splatnosti"
A36: automaticky uvedeno "zaplaceno".
A41: Aktualizace modelů sledování:
A42: 1) Na každém listu pro sledování je uvedeno tlačítko "Aktualizovat" pomocí něhož se
A43: datový a grafický výstup aktualizuje na základě dat z listu "faktury".
A44: 2) Data jsou automaticky řazena dle datumu

Sheet faktury
A1: 1 | B1: 2 | C1: 3 | D1: 4 | E1: 5 | F1: 6 | G1: 7 | H1: 8 | I1: 9 | J1: 10 | K1: 11 | L1: 12 | M1: 13 | N1: 14 | O1: 15 | P1: 16 | Q1: 17 | R1: 18 | T1: 19 | U1: 20
B2: Stav účtu | C2: =SUMIFS(R9:R600,U9:U600,">0")-SUMIFS(G9:G600,J9:J600,">0") -> 1603104.61
F3: =TEXT(F28,"dd.mm.rrrr") -> 03.05.2018
B4: Aktuální datum | C4: 12.12.2018
A6: PŘIJATÉ FAKTURY | D6: Počet faktur | J6: Počet zaplacených faktur | L6: Odeslané FAKTURY | O6: Počet faktur | U6: Počet zaplacených faktur
D7: =COUNTIF(A9:A10011,">0") -> 284 | J7: =COUNTIF(J9:J10011,">0") -> 228 | O7: =COUNTIF(L9:L10010,">0") -> 9 | U7: =COUNTIF(U9:U10010,">0") -> 10
A8: ID přijatá | B8: Název dodavatele | C8: Číslo zakázky | D8: Zdanitelné plnění | E8: Doba splatnosti | F8: Splatné dne | G8: Částka | H8: Pozastávka | I8: Poznámka | J8: Zaplaceno [datum] | L8: ID vydaná | M8: Název Odběratele | N8: číslo zakázky | O8: Zdanitelné plnění | P8: doba splatnosti | Q8: Splatné dne | R8: částka | S8: Pozastávka | T8: Poznámka | U8: Zaplaceno [ano]
A9: 521514 | B9: Pojištění | C9: AB.18235.5.365 | D9: 2018-01-31 | E9: Zaplaceno | F9: 2018-02-15 | G9: 169988.67 | H9: 0 | J9: 2018-04-05 | L9: 1X | M9: Vklad peněz | N9: AB.18235.5.365 | P9: Zaplaceno | Q9: 2018-03-09 | R9: 818565 | S9: 0 | U9: 2018-03-09
A10: 300001 | B10: Pomocné práce | C10: AB.18235.5.365 | D10: 2018-01-31 | E10: Zaplaceno | F10: 2018-03-04 | G10: 37408.42 | H10: 0 | J10: 2018-04-05 | L10: 138286 | M10: Investor | N10: AB.18235.5.365 | O10: 2018-02-28 | P10: Zaplaceno | Q10: 2018-04-28 | R10: 3375974.89 | S10: 0.1 | U10: 2018-04-28
A11: 605056 | B11: ZS - nafta | C11: AB.18235.5.365 | D11: 2018-02-28 | E11: Zaplaceno | F11: 2018-03-11 | G11: 16137.19 | H11: 0 | J11: 2018-04-05 | L11: 882407 | M11: Investor | N11: AB.18235.5.365 | O11: 2018-03-31 | P11: Zaplaceno | Q11: 2018-05-21 | R11: 6939398.98 | S11: 0.1 | U11: 2018-05-21
A12: 441254 | B12: ZS - WC | C12: AB.18235.5.365 | D12: 2018-02-28 | E12: Zaplaceno | F12: 2018-03-14 | G12: 759.63 | H12: 0 | J12: 2018-04-05 | L12: 2X | M12: Vklad peněz | N12: AB.18235.5.365 | P12: Zaplaceno | Q12: 2018-07-30 | R12: 1091420 | S12: 0 | U12: 2018-07-30
A13: 839298 | B13: ZS - panely | C13: AB.18235.5.365 | D13: 2018-01-31 | E13: Zaplaceno | F13: 2018-03-16 | G13: 411042.41 | H13: 0 | J13: 2018-04-05 | L13: 704691 | M13: Investor | N13: AB.18235.5.365 | O13: 2018-04-30 | P13: Zaplaceno | Q13: 2018-06-24 | R13: 5628707.79 | S13: 0.1 | U13: 2018-06-24
A14: 804533 | B14: ZS - agregát | C14: AB.18235.5.365 | D14: 2018-01-31 | E14: Zaplaceno | F14: 2018-03-19 | G14: 17524.93 | H14: 0 | J14: 2018-04-05 | L14: 927852 | M14: Investor | N14: AB.18235.5.365 | O14: 2018-05-31 | P14: Zaplaceno | Q14: 2018-07-23 | R14: 8503003.83 | S14: 0.1 | U14: 2018-07-23
A15: 739892 | B15: ZS - nafta | C15: AB.18235.5.365 | D15: 2018-02-28 | E15: Zaplaceno | F15: 2018-03-21 | G15: 10122.37 | H15: 0 | J15: 2018-04-05 | L15: 253163 | M15: Investor | N15: AB.18235.5.365 | O15: 2018-06-30 | P15: Zaplaceno | Q15: 2018-08-23 | R15: 9288163.74 | S15: 0.1 | U15: 2018-08-23
A16: 478298 | B16: ZS - nafta | C16: AB.18235.5.365 | D16: 2018-02-28 | E16: Zaplaceno | F16: 2018-03-28 | G16: 10139.29 | H16: 0 | J16: 2018-04-05 | L16: 949889 | M16: Investor | N16: AB.18235.5.365 | O16: 2018-07-31 | P16: Zaplaceno | Q16: 2018-09-16 | R16: 10679083.58 | S16: 0.1 | U16: 2018-09-16
A17: 554200 | B17: Pomocné práce | C17: AB.18235.5.365 | D17: 2018-01-30 | E17: Zaplaceno | F17: 2018-03-31 | G17: 89960.29 | H17: 0 | J17: 2018-04-05 | L17: 354751 | M17: Investor | N17: AB.18235.5.365 | O17: 2018-08-31 | P17: Zaplaceno | Q17: 2018-10-20 | R17: 8101086.23 | S17: 0.1 | U17: 2018-10-20
A18: 288778 | B18: ZS - nafta | C18: AB.18235.5.365 | D18: 2018-03-31 | E18: Zaplaceno | F18: 2018-04-05 | G18: 13724.06 | H18: 0 | J18: 2018-05-04 | L18: 3X | M18: Vklad peněz | N18: AB.18235.5.365 | P18: Zaplaceno | Q18: 2018-09-22 | R18: 3274260 | S18: 0 | U18: 2018-09-22
A19: 740427 | B19: ZS - dopravní značení | C19: AB.18235.5.365 | D19: 2018-02-28 | E19: Zaplaceno | F19: 2018-04-09 | G19: 5662.29 | H19: 0 | J19: 2018-05-04 | L19: 671432 | M19: Investor | N19: AB.18235.5.365 | O19: 2018-09-30 | P19: -23 | Q19: 2018-11-19 | R19: 8769554.79 | S19: 0.1
A20: 288318 | B20: ZS - nafta | C20: AB.18235.5.365 | D20: 2018-03-31 | E20: Zaplaceno | F20: 2018-04-12 | G20: 12085.29 | H20: 0 | J20: 2018-05-04 | L20: 576549 | M20: Investor | N20: AB.18235.5.365 | O20: 2018-10-31 | P20: 10 | Q20: 2018-12-22 | R20: 13409414.23 | S20: 0.1
A21: 488728 | B21: ZS - hasičáky | C21: AB.18235.5.365 | D21: 2018-03-14 | E21: Zaplaceno | F21: 2018-04-13 | G21: 2819.68 | H21: 0 | J21: 2018-05-04
A22: 543360 | B22: ZS - nafta | C22: AB.18235.5.365 | D22: 2018-03-31 | E22: Zaplaceno | F22: 2018-04-20 | G22: 13876.86 | H22: 0 | J22: 2018-05-04
A23: 495201 | B23: ZS - řezání panelů | C23: AB.18235.5.365 | D23: 2018-03-31 | E23: Zaplaceno | F23: 2018-04-21 | G23: 3819.97 | H23: 0 | J23: 2018-05-04
A24: 627049 | B24: ZS - PVK přípojka | C24: AB.18235.5.365 | D24: 2018-03-31 | E24: Zaplaceno | F24: 2018-04-24 | G24: 15948.92 | H24: 0 | J24: 2018-05-04
A25: 844245 | B25: ZS - Reklama | C25: AB.18235.5.365 | D25: 2018-03-31 | E25: Zaplaceno | F25: 2018-04-24 | G25: 30450.62 | H25: 0 | J25: 2018-05-04
A26: 591618 | B26: ZS - nafta | C26: AB.18235.5.365 | D26: 2018-03-31 | E26: Zaplaceno | F26: 2018-04-27 | G26: 13245.47 | H26: 0 | J26: 2018-05-04
A27: 650034 | B27: ZS - odpad | C27: AB.18235.5.365 | D27: 2018-03-04 | E27: Zaplaceno | F27: 2018-05-03 | G27: 1396.47 | H27: 0 | J27: 2018-05-04
A28: 702074 | B28: ZS - internet | C28: AB.18235.5.365 | D28: 2018-03-04 | E28: Zaplaceno | F28: 2018-05-03 | G28: 1686.24 | H28: 0 | J28: 2018-05-04
A29: 240359 | B29: Geodeti | C29: AB.18235.5.365 | D29: 2018-03-05 | E29: Zaplaceno | F29: 2018-05-04 | G29: 2641.24 | H29: 0 | J29: 2018-05-04
A30: 299975 | B30: Inženýring | C30: AB.18235.5.365 | D30: 2018-03-05 | E30: Zaplaceno | F30: 2018-05-04 | G30: 14843.31 | H30: 0 | J30: 2018-05-04
A31: 325592 | B31: Pomocné práce | C31: AB.18235.5.365 | D31: 2018-03-05 | E31: Zaplaceno | F31: 2018-05-04 | G31: 42696.35 | H31: 0 | J31: 2018-05-04
A32: 365735 | B32: ZS - tesařské práce | C32: AB.18235.5.365 | D32: 2018-03-31 | E32: Zaplaceno | F32: 2018-05-04 | G32: 6204.61 | H32: 0 | J32: 2018-05-04
A33: 624072 | B33: ZS - WC | C33: AB.18235.5.365 | D33: 2018-04-30 | E33: Zaplaceno | F33: 2018-05-04 | G33: 759.63 | H33: 0 | J33: 2018-05-04
A34: 255260 | B34: ZS - agregát | C34: AB.18235.5.365 | D34: 2018-03-31 | E34: Zaplaceno | F34: 2018-05-05 | G34: 26049.47 | H34: 0 | J34: 2018-05-04
A35: 654749 | B35: Ostraha | C35: AB.18235.5.365 | D35: 2018-03-06 | E35: Zaplaceno | F35: 2018-05-05 | G35: 23473.72 | H35: 0 | J35: 2018-05-04
A36: 834954 | B36: ZS - nafta | C36: AB.18235.5.365 | D36: 2018-04-30 | E36: Zaplaceno | F36: 2018-05-06 | G36: 11482.83 | H36: 0 | J36: 2018-05-04
A37: 567437 | B37: ZS - internet | C37: AB.18235.5.365 | D37: 2018-03-08 | E37: Zaplaceno | F37: 2018-05-07 | G37: 4889.02 | H37: 0 | J37: 2018-05-04
A38: 714636 | B38: ZS - WC | C38: AB.18235.5.365 | D38: 2018-04-30 | E38: Zaplaceno | F38: 2018-05-10 | G38: 759.63 | H38: 0 | J38: 2018-05-04
A39: 679489 | B39: ZS - WC | C39: AB.18235.5.365 | D39: 2018-04-30 | E39: Zaplaceno | F39: 2018-05-11 | G39: 759.63 | H39: 0 | J39: 2018-05-04
A40: 633929 | B40: Drobný materiál | C40: AB.18235.5.365 | D40: 2018-03-30 | E40: Zaplaceno | F40: 2018-05-14 | G40: 5615.36 | H40: 0 | J40: 2018-05-14
A41: 382227 | B41: Drobný materiál | C41: AB.18235.5.365 | D41: 2018-03-30 | E41: Zaplaceno | F41: 2018-05-14 | G41: 6830.11 | H41: 0 | J41: 2018-05-14
A42: 285850 | B42: Zábor | C42: AB.18235.5.365 | D42: 2018-02-26 | E42: Zaplaceno | F42: 2018-04-27 | G42: 285106.19 | H42: 0 | J42: 2018-05-21
A43: 560997 | B43: TDO | C43: AB.18235.5.365 | D43: 2018-05-01 | E43: Zaplaceno | F43: 2018-05-15 | G43: 3136.47 | H43: 0 | J43: 2018-05-21
A44: 248240 | B44: TDO | C44: AB.18235.5.365 | D44: 2018-05-01 | E44: Zaplaceno | F44: 2018-05-15 | G44: 3218.05 | H44: 0 | J44: 2018-05-21
A45: 465570 | B45: Piloty | C45: AB.18235.5.365 | D45: 2018-03-16 | E45: Zaplaceno | F45: 2018-05-15 | G45: 689462.4 | H45: 0.1 | J45: 2018-05-21
A46: 401265 | B46: ZS - nafta | C46: AB.18235.5.365 | D46: 2018-04-30 | E46: Zaplaceno | F46: 2018-05-17 | G46: 14288.87 | H46: 0 | J46: 2018-05-21
A47: 517980 | B47: ZS - vybavení | C47: AB.18235.5.365 | D47: 2018-04-30 | E47: Zaplaceno | F47: 2018-05-17 | G47: 3264.44 | H47: 0 | J47: 2018-05-21
A48: 359374 | B48: ZS - odpad | C48: AB.18235.5.365 | D48: 2018-03-19 | E48: Zaplaceno | F48: 2018-05-18 | G48: 991.56 | H48: 0 | J48: 2018-05-21
A49: 747567 | B49: ZS - odpad | C49: AB.18235.5.365 | D49: 2018-03-19 | E49: Zaplaceno | F49: 2018-05-18 | G49: 10.91 | H49: 0 | J49: 2018-05-21
A50: 558531 | B50: ZS - nářadí | C50: AB.18235.5.365 | D50: 2018-04-30 | E50: Zaplaceno | F50: 2018-05-30 | G50: 321.97 | H50: 0 | J50: 2018-06-01
A51: 426061 | B51: ZS - nafta | C51: AB.18235.5.365 | D51: 2018-04-30 | E51: Zaplaceno | F51: 2018-05-30 | G51: 16459.71 | H51: 0 | J51: 2018-06-01
A52: 489849 | B52: ZS - internet | C52: AB.18235.5.365 | D52: 2018-04-02 | E52: Zaplaceno | F52: 2018-06-01 | G52: 1686.24 | H52: 0 | J52: 2018-06-01
A53: 463429 | B53: ZS - nářadí | C53: AB.18235.5.365 | D53: 2018-05-03 | E53: Zaplaceno | F53: 2018-06-02 | G53: 1114.34 | H53: 0 | J53: 2018-06-01
A54: 357122 | B54: Inženýring | C54: AB.18235.5.365 | D54: 2018-04-04 | E54: Zaplaceno | F54: 2018-06-03 | G54: 14843.31 | H54: 0 | J54: 2018-06-01
A55: 486425 | B55: ZS - oplocení | C55: AB.18235.5.365 | D55: 2018-04-04 | E55: Zaplaceno | F55: 2018-06-03 | G55: 65439.91 | H55: 0 | J55: 2018-06-01
A56: 820606 | B56: ZS - hasičáky | C56: AB.18235.5.365 | D56: 2018-05-06 | E56: Zaplaceno | F56: 2018-06-05 | G56: 4314.38 | H56: 0 | J56: 2018-06-08
A57: 567206 | B57: ZS - agregát | C57: AB.18235.5.365 | D57: 2018-04-30 | E57: Zaplaceno | F57: 2018-06-06 | G57: 28987.57 | H57: 0 | J57: 2018-06-08
A58: 491164 | B58: ZS - nafta | C58: AB.18235.5.365 | D58: 2018-05-31 | E58: Zaplaceno | F58: 2018-06-08 | G58: 9029.86 | H58: 0 | J58: 2018-06-08
A59: 380208 | B59: ZS - oplocení | C59: AB.18235.5.365 | D59: 2018-04-11 | E59: Zaplaceno | F59: 2018-06-10 | G59: 272047.35 | H59: 0 | J59: 2018-06-08
A60: 392517 | B60: Nákl. Real. Tým | C60: AB.18235.5.365 | D60: 2018-04-11 | E60: Zaplaceno | F60: 2018-06-10 | G60: 224832.52 | H60: 0 | J60: 2018-06-08
A61: 709440 | B61: Nákl. Real. Tým | C61: AB.18235.5.365 | D61: 2018-04-11 | E61: Zaplaceno | F61: 2018-06-10 | G61: 50833.84 | H61: 0 | J61: 2018-06-08
A62: 297702 | B62: Stavba - elektro práce | C62: AB.18235.5.365 | D62: 2018-04-11 | E62: Zaplaceno | F62: 2018-06-10 | G62: 42011.44 | H62: 0 | J62: 2018-06-08
A63: 457204 | B63: Stavba - elektro práce | C63: AB.18235.5.365 | D63: 2018-04-11 | E63: Zaplaceno | F63: 2018-06-10 | G63: 173898.68 | H63: 0 | J63: 2018-06-08
A64: 534203 | B64: Zemní práce | C64: AB.18235.5.365 | D64: 2018-04-11 | E64: Zaplaceno | F64: 2018-06-10 | G64: 173898.68 | H64: 0.1 | J64: 2018-06-08
A65: 379012 | B65: Mob. Jeřáb | C65: AB.18235.5.365 | D65: 2018-04-26 | E65: Zaplaceno | F65: 2018-05-26 | G65: 1500.7 | H65: 0 | J65: 2018-06-15
A66: 745056 | B66: Ostraha | C66: AB.18235.5.365 | D66: 2018-04-12 | E66: Zaplaceno | F66: 2018-06-11 | G66: 32091.02 | H66: 0 | J66: 2018-06-15
A67: 460180 | B67: Pojištění | C67: AB.18235.5.365 | D67: 2018-04-13 | E67: Zaplaceno | F67: 2018-06-12 | G67: 169988.67 | H67: 0 | J67: 2018-06-15
A68: 416424 | B68: Inženýring | C68: AB.18235.5.365 | D68: 2018-04-14 | E68: Zaplaceno | F68: 2018-06-13 | G68: 4410.43 | H68: 0 | J68: 2018-06-15
A69: 754199 | B69: ZS - nafta | C69: AB.18235.5.365 | D69: 2018-05-31 | E69: Zaplaceno | F69: 2018-06-13 | G69: 9141.73 | H69: 0 | J69: 2018-06-15
A70: 507947 | B70: Pomocné práce | C70: AB.18235.5.365 | D70: 2018-04-15 | E70: Zaplaceno | F70: 2018-06-14 | G70: 49070.24 | H70: 0 | J70: 2018-06-15
A71: 524157 | B71: Vrácení kapitálu | C71: AB.18235.5.365 | D71: 2018-05-31 | E71: Zaplaceno | F71: 2018-06-14 | G71: 1875595.99 | H71: 0 | J71: 2018-06-15
A72: 786918 | B72: ZS - dopravní značení | C72: AB.18235.5.365 | D72: 2018-04-30 | E72: Zaplaceno | F72: 2018-06-15 | G72: 6292.58 | H72: 0 | J72: 2018-06-15
A73: 599115 | B73: Piloty | C73: AB.18235.5.365 | D73: 2018-04-18 | E73: Zaplaceno | F73: 2018-06-17 | G73: 385365.12 | H73: 0.1 | J73: 2018-06-15
A74: 681498 | B74: ZS - tesařské práce | C74: AB.18235.5.365 | D74: 2018-05-31 | E74: Zaplaceno | F74: 2018-06-18 | G74: 7318.52 | H74: 0 | J74: 2018-06-15
A75: 408977 | B75: TDO | C75: AB.18235.5.365 | D75: 2018-06-05 | E75: Zaplaceno | F75: 2018-06-19 | G75: 8468.46 | H75: 0 | J75: 2018-06-15
A76: 307780 | B76: ZS - Reklama | C76: AB.18235.5.365 | D76: 2018-05-31 | E76: Zaplaceno | F76: 2018-06-19 | G76: 25025.71 | H76: 0 | J76: 2018-06-15
A77: 288923 | B77: TDO | C77: AB.18235.5.365 | D77: 2018-06-06 | E77: Zaplaceno | F77: 2018-06-20 | G77: 13486.81 | H77: 0 | J77: 2018-06-15
A78: 302043 | B78: ZS - odpad | C78: AB.18235.5.365 | D78: 2018-04-17 | E78: Zaplaceno | F78: 2018-06-16 | G78: 1002.47 | H78: 0 | J78: 2018-06-22
A79: 576502 | B79: Stavebniny | C79: AB.18235.5.365 | D79: 2018-04-24 | E79: Zaplaceno | F79: 2018-06-23 | G79: 8716.08 | H79: 0 | J79: 2018-06-22
A80: 566501 | B80: ZS - zastřešení | C80: AB.18235.5.365 | D80: 2018-05-09 | E80: Zaplaceno | F80: 2018-06-23 | G80: 42705.63 | H80: 0 | J80: 2018-06-22
A81: 548534 | B81: ZS - kancelářské potřeby | C81: AB.18235.5.365 | D81: 2018-04-24 | E81: Zaplaceno | F81: 2018-06-23 | G81: 1189.89 | H81: 0 | J81: 2018-06-22
A82: 345949 | B82: ZS - kancelářské potřeby | C82: AB.18235.5.365 | D82: 2018-04-24 | E82: Zaplaceno | F82: 2018-06-23 | G82: 1017.73 | H82: 0 | J82: 2018-06-22
A83: 304857 | B83: ZS - voda | C83: AB.18235.5.365 | D83: 2018-05-31 | E83: Zaplaceno | F83: 2018-06-24 | G83: 3071.26 | H83: 0 | J83: 2018-06-22
A84: 415897 | B84: ZS - vybavení | C84: AB.18235.5.365 | D84: 2018-05-31 | E84: Zaplaceno | F84: 2018-06-24 | G84: 16882.08 | H84: 0 | J84: 2018-06-22
A85: 359914 | B85: Inženýring | C85: AB.18235.5.365 | D85: 2018-04-26 | E85: Zaplaceno | F85: 2018-06-25 | G85: 18554.14 | H85: 0 | J85: 2018-06-22
A86: 739104 | B86: Drobný materiál | C86: AB.18235.5.365 | D86: 2018-05-11 | E86: Zaplaceno | F86: 2018-06-25 | G86: 3248.07 | H86: 0 | J86: 2018-06-22
A87: 770185 | B87: Drobný materiál | C87: AB.18235.5.365 | D87: 2018-05-11 | E87: Zaplaceno | F87: 2018-06-25 | G87: 1577.1 | H87: 0 | J87: 2018-06-22
A88: 434979 | B88: ZS - oplocení | C88: AB.18235.5.365 | D88: 2018-04-26 | E88: Zaplaceno | F88: 2018-06-25 | G88: 27048.6 | H88: 0 | J88: 2018-06-22
A89: 656380 | B89: ZS - Elektro | C89: AB.18235.5.365 | D89: 2018-04-26 | E89: Zaplaceno | F89: 2018-06-25 | G89: 7507.13 | H89: 0 | J89: 2018-06-22
A90: 566402 | B90: Inženýring | C90: AB.18235.5.365 | D90: 2018-06-15 | E90: Zaplaceno | F90: 2018-08-14 | G90: 218584.69 | H90: 0 | J90: 2018-06-22
A91: 657609 | B91: ZS - nářadí | C91: AB.18235.5.365 | D91: 2018-05-29 | E91: Zaplaceno | F91: 2018-06-28 | G91: 14853.68 | H91: 0 | J91: 2018-06-29
A92: 327858 | B92: Stavebniny | C92: AB.18235.5.365 | D92: 2018-04-30 | E92: Zaplaceno | F92: 2018-06-29 | G92: 1729.9 | H92: 0 | J92: 2018-06-29
A93: 770164 | B93: ZS - náhradní výsadba | C93: AB.18235.5.365 | D93: 2018-04-30 | E93: Zaplaceno | F93: 2018-06-29 | G93: 19295.66 | H93: 0 | J93: 2018-06-29
A94: 504492 | B94: ZS - agregát | C94: AB.18235.5.365 | D94: 2018-05-31 | E94: Zaplaceno | F94: 2018-06-30 | G94: 183713.82 | H94: 0 | J94: 2018-06-29
A95: 482053 | B95: ZS - internet | C95: AB.18235.5.365 | D95: 2018-05-02 | E95: Zaplaceno | F95: 2018-07-01 | G95: 1686.24 | H95: 0 | J95: 2018-06-29
A96: 799249 | B96: Pomocné práce | C96: AB.18235.5.365 | D96: 2018-05-02 | E96: Zaplaceno | F96: 2018-07-01 | G96: 53381.35 | H96: 0 | J96: 2018-06-29
A97: 427095 | B97: ZS - kancelářské potřeby | C97: AB.18235.5.365 | D97: 2018-05-02 | E97: Zaplaceno | F97: 2018-07-01 | G97: 19952.79 | H97: 0 | J97: 2018-06-29
A98: 715072 | B98: Stavebniny | C98: AB.18235.5.365 | D98: 2018-05-05 | E98: Zaplaceno | F98: 2018-07-04 | G98: 959.9 | H98: 0 | J98: 2018-07-13
A99: 381978 | B99: ZS - nářadí | C99: AB.18235.5.365 | D99: 2018-06-07 | E99: Zaplaceno | F99: 2018-07-07 | G99: 297.41 | H99: 0 | J99: 2018-07-13
A100: 403272 | B100: ZS - Elektro | C100: AB.18235.5.365 | D100: 2018-05-09 | E100: Zaplaceno | F100: 2018-07-08 | G100: 9277.07 | H100: 0 | J100: 2018-07-13
A101: 677074 | B101: Ostraha | C101: AB.18235.5.365 | D101: 2018-05-10 | E101: Zaplaceno | F101: 2018-07-09 | G101: 31377.78 | H101: 0 | J101: 2018-07-13
A102: 275687 | B102: ZS - dopravní značení | C102: AB.18235.5.365 | D102: 2018-05-31 | E102: Zaplaceno | F102: 2018-07-10 | G102: 3484.9 | H102: 0 | J102: 2018-07-13
A103: 843865 | B103: ZS - nářadí | C103: AB.18235.5.365 | D103: 2018-06-12 | E103: Zaplaceno | F103: 2018-07-12 | G103: 2007.67 | H103: 0 | J103: 2018-07-13
A104: 297029 | B104: Zajištění stavební jámy | C104: AB.18235.5.365 | D104: 2018-05-14 | E104: Zaplaceno | F104: 2018-07-13 | G104: 3894526.86 | H104: 0.1 | J104: 2018-07-13
A105: 639366 | B105: piloty | C105: AB.18235.5.365 | D105: 2018-05-15 | E105: Zaplaceno | F105: 2018-07-14 | G105: 815652.71 | H105: 0.1 | J105: 2018-07-13
A106: 497347 | B106: ZS - Pronájem buňky | C106: AB.18235.5.365 | D106: 2018-05-31 | E106: Zaplaceno | F106: 2018-07-15 | G106: 12063.85 | H106: 0 | J106: 2018-07-13
A107: 432810 | B107: ZS - nářadí | C107: AB.18235.5.365 | D107: 2018-06-16 | E107: Zaplaceno | F107: 2018-07-16 | G107: 1320.62 | H107: 0 | J107: 2018-07-20
A108: 642851 | B108: Stavebniny | C108: AB.18235.5.365 | D108: 2018-05-20 | E108: Zaplaceno | F108: 2018-07-19 | G108: 9211.58 | H108: 0 | J108: 2018-07-20
A109: 673838 | B109: Zemní práce | C109: AB.18235.5.365 | D109: 2018-05-20 | E109: Zaplaceno | F109: 2018-07-19 | G109: 3888.18 | H109: 0.1 | J109: 2018-07-20
A110: 495627 | B110: ZS - nářadí | C110: AB.18235.5.365 | D110: 2018-06-20 | E110: Zaplaceno | F110: 2018-07-20 | G110: 3449.98 | H110: 0 | J110: 2018-07-20
A111: 384854 | B111: Čerpání podzemní vody | C111: AB.18235.5.365 | D111: 2018-05-22 | E111: Zaplaceno | F111: 2018-07-21 | G111: 276947.83 | H111: 0.1 | J111: 2018-07-20
A112: 488203 | B112: ZS - nářadí | C112: AB.18235.5.365 | D112: 2018-06-22 | E112: Zaplaceno | F112: 2018-07-22 | G112: 678.32 | H112: 0 | J112: 2018-07-20
A113: 821500 | B113: Mob. Jeřáb | C113: AB.18235.5.365 | D113: 2018-06-11 | E113: Zaplaceno | F113: 2018-07-11 | G113: 3893.1 | H113: 0 | J113: 2018-07-31
A114: 347825 | B114: ZS - odpad | C114: AB.18235.5.365 | D114: 2018-05-14 | E114: Zaplaceno | F114: 2018-07-13 | G114: 1002.47 | H114: 0 | J114: 2018-07-31
A115: 304413 | B115: ZS - vybavení | C115: AB.18235.5.365 | D115: 2018-06-30 | E115: Zaplaceno | F115: 2018-07-16 | G115: 8345.54 | H115: 0 | J115: 2018-07-31
A116: 666126 | B116: ZS - oplocení | C116: AB.18235.5.365 | D116: 2018-05-24 | E116: Zaplaceno | F116: 2018-07-23 | G116: 26339.13 | H116: 0 | J116: 2018-07-31
A117: 265337 | B117: Drobný materiál | C117: AB.18235.5.365 | D117: 2018-06-10 | E117: Zaplaceno | F117: 2018-07-25 | G117: 11645.45 | H117: 0 | J117: 2018-07-31
A118: 745430 | B118: ZS - voda | C118: AB.18235.5.365 | D118: 2018-06-30 | E118: Zaplaceno | F118: 2018-07-26 | G118: 18728.22 | H118: 0 | J118: 2018-07-31
A119: 586579 | B119: Dokumentace | C119: AB.18235.5.365 | D119: 2018-05-28 | E119: Zaplaceno | F119: 2018-07-27 | G119: 894174.76 | H119: 0 | J119: 2018-07-31
A120: 605327 | B120: ZS - voda | C120: AB.18235.5.365 | D120: 2018-06-30 | E120: Zaplaceno | F120: 2018-07-27 | G120: 36621.51 | H120: 0 | J120: 2018-07-31
A121: 693102 | B121: TDO | C121: AB.18235.5.365 | D121: 2018-07-13 | E121: Zaplaceno | F121: 2018-07-27 | G121: 3136.47 | H121: 0 | J121: 2018-07-31
A122: 522463 | B122: Jeřáb | C122: AB.18235.5.365 | D122: 2018-05-30 | E122: Zaplaceno | F122: 2018-07-29 | G122: 9659.07 | H122: 0 | J122: 2018-07-31
A123: 355379 | B123: ZS - klimatizace | C123: AB.18235.5.365 | D123: 2018-05-30 | E123: Zaplaceno | F123: 2018-07-29 | G123: 118638.99 | H123: 0 | J123: 2018-07-31
A124: 476575 | B124: ZS - beton | C124: AB.18235.5.365 | D124: 2018-06-30 | E124: Zaplaceno | F124: 2018-07-30 | G124: 11694.02 | H124: 0 | J124: 2018-07-31
A125: 430137 | B125: Nákl. Real. Tým | C125: AB.18235.5.365 | D125: 2018-07-01 | E125: Zaplaceno | F125: 2018-07-31 | G125: 174354.35 | H125: 0 | J125: 2018-07-31
A126: 682329 | B126: Nákl. Real. Tým | C126: AB.18235.5.365 | D126: 2018-07-01 | E126: Zaplaceno | F126: 2018-07-31 | G126: 184722.84 | H126: 0 | J126: 2018-07-31
A127: 736272 | B127: Stavba - elektro práce | C127: AB.18235.5.365 | D127: 2018-07-01 | E127: Zaplaceno | F127: 2018-07-31 | G127: 23004.81 | H127: 0 | J127: 2018-07-31
A128: 841121 | B128: Stavba - elektro práce | C128: AB.18235.5.365 | D128: 2018-07-01 | E128: Zaplaceno | F128: 2018-07-31 | G128: 51778.09 | H128: 0 | J128: 2018-07-31
A129: 600462 | B129: ZS - nářadí | C129: AB.18235.5.365 | D129: 2018-07-02 | E129: Zaplaceno | F129: 2018-08-01 | G129: 3610.96 | H129: 0 | J129: 2018-07-31
A130: 378759 | B130: ZS - internet | C130: AB.18235.5.365 | D130: 2018-06-02 | E130: Zaplaceno | F130: 2018-08-01 | G130: 2231.95 | H130: 0 | J130: 2018-07-31
A131: 764588 | B131: Stavba - elektro práce | C131: AB.18235.5.365 | D131: 2018-07-02 | E131: Zaplaceno | F131: 2018-08-01 | G131: 48327.83 | H131: 0 | J131: 2018-07-31
A132: 320000 | B132: Stavba - elektro práce | C132: AB.18235.5.365 | D132: 2018-07-02 | E132: Zaplaceno | F132: 2018-08-01 | G132: 39940.36 | H132: 0 | J132: 2018-07-31
A133: 268251 | B133: Nákl. Real. Tým | C133: AB.18235.5.365 | D133: 2018-07-02 | E133: Zaplaceno | F133: 2018-08-01 | G133: 150880.63 | H133: 0 | J133: 2018-07-31
A134: 709381 | B134: Nákl. Real. Tým | C134: AB.18235.5.365 | D134: 2018-07-02 | E134: Zaplaceno | F134: 2018-08-01 | G134: 124694.74 | H134: 0 | J134: 2018-07-31
A135: 385727 | B135: Zemní práce | C135: AB.18235.5.365 | D135: 2018-06-02 | E135: Zaplaceno | F135: 2018-08-01 | G135: 2235061.17 | H135: 0.1 | J135: 2018-07-31
A136: 476555 | B136: LOP | C136: AB.18235.5.365 | D136: 2018-06-27 | E136: Zaplaceno | F136: 2018-08-26 | G136: 737804.29 | H136: 0 | J136: 2018-07-31
A137: 789966 | B137: Čerpání podzemní vody | C137: AB.18235.5.365 | D137: 2018-06-05 | E137: Zaplaceno | F137: 2018-08-04 | G137: 237383.85 | H137: 0.1 | J137: 2018-08-07
A138: 269734 | B138: Ostraha | C138: AB.18235.5.365 | D138: 2018-06-05 | E138: Zaplaceno | F138: 2018-08-04 | G138: 32112.74 | H138: 0 | J138: 2018-08-07
A139: 543629 | B139: Zajištění stavební jámy | C139: AB.18235.5.365 | D139: 2018-06-08 | E139: Zaplaceno | F139: 2018-08-07 | G139: 2196522.91 | H139: 0.1 | J139: 2018-08-07
A140: 429565 | B140: Piloty | C140: AB.18235.5.365 | D140: 2018-06-08 | E140: Zaplaceno | F140: 2018-08-07 | G140: 550986.31 | H140: 0.1 | J140: 2018-08-07
A141: 299990 | B141: ZS - nářadí | C141: AB.18235.5.365 | D141: 2018-07-09 | E141: Zaplaceno | F141: 2018-08-08 | G141: 151.71 | H141: 0 | J141: 2018-08-07
A142: 318305 | B142: Přípojky | C142: AB.18235.5.365 | D142: 2018-06-09 | E142: Zaplaceno | F142: 2018-08-08 | G142: 1214871.61 | H142: 0 | J142: 2018-08-07
A143: 767669 | B143: Pomocné práce | C143: AB.18235.5.365 | D143: 2018-06-10 | E143: Zaplaceno | F143: 2018-08-09 | G143: 54789.28 | H143: 0 | J143: 2018-08-07
A144: 388274 | B144: ZS - pronájem buňky | C144: AB.18235.5.365 | D144: 2018-06-30 | E144: Zaplaceno | F144: 2018-08-09 | G144: 1237.07 | H144: 0 | J144: 2018-08-07
A145: 264497 | B145: ZS - kancelářské potřeby | C145: AB.18235.5.365 | D145: 2018-05-31 | E145: Zaplaceno | F145: 2018-07-30 | G145: 3930.96 | H145: 0 | J145: 2018-08-14
A146: 384522 | B146: Zajištění stavební jámy | C146: AB.18235.5.365 | D146: 2018-06-08 | E146: Zaplaceno | F146: 2018-08-07 | G146: 2196522.91 | H146: 0.1 | J146: 2018-08-14
A147: 560436 | B147: ZS - odpad | C147: AB.18235.5.365 | D147: 2018-06-11 | E147: Zaplaceno | F147: 2018-08-10 | G147: 1002.47 | H147: 0 | J147: 2018-08-14
A148: 526945 | B148: ZS - nářadí | C148: AB.18235.5.365 | D148: 2018-07-12 | E148: Zaplaceno | F148: 2018-08-11 | G148: 22809.59 | H148: 0 | J148: 2018-08-14
A149: 675827 | B149: Přípojka elektro | C149: AB.18235.5.365 | D149: 2018-06-13 | E149: Zaplaceno | F149: 2018-08-12 | G149: 251033.69 | H149: 0 | J149: 2018-08-14
A150: 511432 | B150: ZS - nářadí | C150: AB.18235.5.365 | D150: 2018-07-16 | E150: Zaplaceno | F150: 2018-08-15 | G150: 2567.02 | H150: 0 | J150: 2018-08-14
A151: 443970 | B151: ZS - internet | C151: AB.18235.5.365 | D151: 2018-06-16 | E151: Zaplaceno | F151: 2018-08-15 | G151: 2231.95 | H151: 0 | J151: 2018-08-14
A152: 821434 | B152: Drobná vydání | C152: AB.18235.5.365 | D152: 2018-07-16 | E152: Zaplaceno | F152: 2018-08-15 | G152: 79572.01 | H152: 0 | J152: 2018-08-14
A153: 798224 | B153: Správní režie | C153: AB.18235.5.365 | D153: 2018-07-20 | E153: Zaplaceno | F153: 2018-08-19 | G153: 267949.07 | H153: 0 | J153: 2018-08-21
A154: 659356 | B154: Správní režie | C154: AB.18235.5.365 | D154: 2018-07-20 | E154: Zaplaceno | F154: 2018-08-19 | G154: 221543.8 | H154: 0 | J154: 2018-08-21
A155: 276610 | B155: ZS - dopravní značení | C155: AB.18235.5.365 | D155: 2018-07-31 | E155: Zaplaceno | F155: 2018-08-17 | G155: 15398.41 | H155: 0 | J155: 2018-08-21
A156: 766483 | B156: Inženýring | C156: AB.18235.5.365 | D156: 2018-06-18 | E156: Zaplaceno | F156: 2018-08-17 | G156: 7858.22 | H156: 0 | J156: 2018-08-21
A157: 842796 | B157: ZS - Elektro | C157: AB.18235.5.365 | D157: 2018-06-18 | E157: Zaplaceno | F157: 2018-08-17 | G157: 10101.64 | H157: 0 | J157: 2018-08-21
A158: 619819 | B158: Stavebniny | C158: AB.18235.5.365 | D158: 2018-06-20 | E158: Zaplaceno | F158: 2018-08-19 | G158: 7815.11 | H158: 0 | J158: 2018-08-21
A159: 800543 | B159: Stavba - elektro práce | C159: AB.18235.5.365 | D159: 2018-07-21 | E159: Zaplaceno | F159: 2018-08-20 | G159: 22505.08 | H159: 0 | J159: 2018-08-21
A160: 792363 | B160: Stavba - elektro práce | C160: AB.18235.5.365 | D160: 2018-07-21 | E160: Zaplaceno | F160: 2018-08-20 | G160: 18598.89 | H160: 0 | J160: 2018-08-21
A161: 712489 | B161: Nákl. Real. Tým | C161: AB.18235.5.365 | D161: 2018-07-21 | E161: Zaplaceno | F161: 2018-08-20 | G161: 131076.81 | H161: 0 | J161: 2018-08-21
A162: 654840 | B162: Nákl. Real. Tým | C162: AB.18235.5.365 | D162: 2018-07-21 | E162: Zaplaceno | F162: 2018-08-20 | G162: 108323.44 | H162: 0 | J162: 2018-08-21
A163: 583702 | B163: Zemní práce | C163: AB.18235.5.365 | D163: 2018-06-21 | E163: Zaplaceno | F163: 2018-08-20 | G163: 2321681.18 | H163: 0.1 | J163: 2018-08-21
A164: 546829 | B164: Monolit | C164: AB.18235.5.365 | D164: 2018-06-24 | E164: Zaplaceno | F164: 2018-08-23 | G164: 3521337.45 | H164: 0.02 | J164: 2018-08-28
A165: 816851 | B165: ZS - internet | C165: AB.18235.5.365 | D165: 2018-06-24 | E165: Zaplaceno | F165: 2018-08-23 | G165: 22047.31 | H165: 0 | J165: 2018-08-28
A166: 623630 | B166: ZS - voda | C166: AB.18235.5.365 | D166: 2018-07-31 | E166: Zaplaceno | F166: 2018-08-23 | G166: 23869.36 | H166: 0 | J166: 2018-08-28
A167: 646363 | B167: Drobný materiál | C167: AB.18235.5.365 | D167: 2018-07-10 | E167: Zaplaceno | F167: 2018-08-24 | G167: 18211.98 | H167: 0 | J167: 2018-08-28
A168: 342940 | B168: ZS - oplocení | C168: AB.18235.5.365 | D168: 2018-06-25 | E168: Zaplaceno | F168: 2018-08-24 | G168: 25489.02 | H168: 0 | J168: 2018-08-28
A169: 634606 | B169: ZS - nářadí | C169: AB.18235.5.365 | D169: 2018-07-26 | E169: Zaplaceno | F169: 2018-08-25 | G169: 165.35 | H169: 0 | J169: 2018-08-28
A170: 282023 | B170: ZS - elektro | C170: AB.18235.5.365 | D170: 2018-06-29 | E170: Zaplaceno | F170: 2018-08-28 | G170: 3789.96 | H170: 0 | J170: 2018-08-28
A171: 828871 | B171: ZS - nářadí | C171: AB.18235.5.365 | D171: 2018-07-30 | E171: Zaplaceno | F171: 2018-08-29 | G171: 2428.41 | H171: 0 | J171: 2018-08-28
A172: 841676 | B172: Správní režie | C172: AB.18235.5.365 | D172: 2018-07-30 | E172: Zaplaceno | F172: 2018-08-29 | G172: 236194.75 | H172: 0 | J172: 2018-08-28
A173: 257489 | B173: Inženýring | C173: AB.18235.5.365 | D173: 2018-06-30 | E173: Zaplaceno | F173: 2018-08-29 | G173: 109335.73 | H173: 0 | J173: 2018-08-28
A174: 355597 | B174: ZS - kancelářské potřeby | C174: AB.18235.5.365 | D174: 2018-06-27 | E174: Zaplaceno | F174: 2018-08-26 | G174: 3559.07 | H174: 0 | J174: 2018-09-04
A175: 525075 | B175: ZS - nářadí | C175: AB.18235.5.365 | D175: 2018-08-01 | E175: Zaplaceno | F175: 2018-08-31 | G175: 3939.48 | H175: 0 | J175: 2018-09-04
A176: 723967 | B176: ZS - kancelářské potřeby | C176: AB.18235.5.365 | D176: 2018-07-02 | E176: Zaplaceno | F176: 2018-08-31 | G176: 2284.18 | H176: 0 | J176: 2018-09-04
A177: 708874 | B177: Správní režie | C177: AB.18235.5.365 | D177: 2018-08-01 | E177: Zaplaceno | F177: 2018-08-31 | G177: 442896.6 | H177: 0 | J177: 2018-09-04
A178: 767962 | B178: Nákl. Real. Tým | C178: AB.18235.5.365 | D178: 2018-08-01 | E178: Zaplaceno | F178: 2018-08-31 | G178: 235746.72 | H178: 0 | J178: 2018-09-04
A179: 657533 | B179: ZS - buňky | C179: AB.18235.5.365 | D179: 2018-07-02 | E179: Zaplaceno | F179: 2018-08-31 | G179: 35918.63 | H179: 0 | J179: 2018-09-04
A180: 677036 | B180: ZS - nářadí | C180: AB.18235.5.365 | D180: 2018-08-02 | E180: Zaplaceno | F180: 2018-09-01 | G180: 3833.07 | H180: 0 | J180: 2018-09-04
A181: 678383 | B181: Stavebniny | C181: AB.18235.5.365 | D181: 2018-07-03 | E181: Zaplaceno | F181: 2018-09-01 | G181: 2395.12 | H181: 0 | J181: 2018-09-04
A182: 449658 | B182: Pomocné práce | C182: AB.18235.5.365 | D182: 2018-07-03 | E182: Zaplaceno | F182: 2018-09-01 | G182: 54658.31 | H182: 0 | J182: 2018-09-04
A183: 273478 | B183: ZS - kancelářské potřeby | C183: AB.18235.5.365 | D183: 2018-07-03 | E183: Zaplaceno | F183: 2018-09-01 | G183: 3033.03 | H183: 0 | J183: 2018-09-04
A184: 755998 | B184: Ostraha | C184: AB.18235.5.365 | D184: 2018-07-04 | E184: Zaplaceno | F184: 2018-09-02 | G184: 30901.37 | H184: 0 | J184: 2018-09-04
A185: 706384 | B185: ZS - Reklama | C185: AB.18235.5.365 | D185: 2018-08-31 | E185: Zaplaceno | F185: 2018-09-02 | G185: 3961.85 | H185: 0 | J185: 2018-09-04
A186: 551576 | B186: Drobný materiál | C186: AB.18235.5.365 | D186: 2018-07-22 | E186: Zaplaceno | F186: 2018-09-05 | G186: 6407.73 | H186: 0 | J186: 2018-09-04
A187: 423746 | B187: Stavba - elektro práce | C187: AB.18235.5.365 | D187: 2018-08-06 | E187: Zaplaceno | F187: 2018-09-05 | G187: 19049.64 | H187: 0 | J187: 2018-09-04
A188: 641170 | B188: Stavba - elektro práce | C188: AB.18235.5.365 | D188: 2018-08-06 | E188: Zaplaceno | F188: 2018-09-05 | G188: 15743.73 | H188: 0 | J188: 2018-09-04
A189: 507392 | B189: Nákl. Real. Tým | C189: AB.18235.5.365 | D189: 2018-08-06 | E189: Zaplaceno | F189: 2018-09-05 | G189: 131071.36 | H189: 0 | J189: 2018-09-04
A190: 739329 | B190: Nákl. Real. Tým | C190: AB.18235.5.365 | D190: 2018-08-06 | E190: Zaplaceno | F190: 2018-09-05 | G190: 108323.44 | H190: 0 | J190: 2018-09-04
A191: 557650 | B191: Zemní práce | C191: AB.18235.5.365 | D191: 2018-07-08 | E191: Zaplaceno | F191: 2018-09-06 | G191: 2669279.45 | H191: 0.1 | J191: 2018-09-04
A192: 519134 | B192: Správní režie | C192: AB.18235.5.365 | D192: 2018-08-29 | E192: Zaplaceno | F192: 2018-09-28 | G192: 260994.99 | H192: 0 | J192: 2018-09-04
A193: 762865 | B193: Nákl. Real. Tým | C193: AB.18235.5.365 | D193: 2018-08-29 | E193: Zaplaceno | F193: 2018-09-28 | G193: 449665.04 | H193: 0 | J193: 2018-09-04
A194: 562096 | B194: ZS - buňky | C194: AB.18235.5.365 | D194: 2018-07-30 | E194: Zaplaceno | F194: 2018-09-28 | G194: 85387.79 | H194: 0 | J194: 2018-09-04
A195: 561874 | B195: ZS - Pronájem buňky | C195: AB.18235.5.365 | D195: 2018-07-31 | E195: Zaplaceno | F195: 2018-09-05 | G195: 1247.98 | H195: 0 | J195: 2018-09-11
A196: 739957 | B196: Čerpání podzemní vody | C196: AB.18235.5.365 | D196: 2018-07-09 | E196: Zaplaceno | F196: 2018-09-07 | G196: 170807.23 | H196: 0.1 | J196: 2018-09-11
A197: 829295 | B197: ZS - dopravní značení | C197: AB.18235.5.365 | D197: 2018-07-31 | E197: Zaplaceno | F197: 2018-09-09 | G197: 927.16 | H197: 0 | J197: 2018-09-11
A198: 592558 | B198: ZS - odpad | C198: AB.18235.5.365 | D198: 2018-07-12 | E198: Zaplaceno | F198: 2018-09-10 | G198: 1002.47 | H198: 0 | J198: 2018-09-11
A199: 504157 | B199: ZS - nářadí | C199: AB.18235.5.365 | D199: 2018-08-14 | E199: Zaplaceno | F199: 2018-09-13 | G199: 2085.16 | H199: 0 | J199: 2018-09-11
A200: 315570 | B200: Dokumentace | C200: AB.18235.5.365 | D200: 2018-07-11 | E200: Zaplaceno | F200: 2018-09-09 | G200: 3119636.35 | H200: 0 | J200: 2018-09-25
A201: 269750 | B201: Monolit | C201: AB.18235.5.365 | D201: 2018-07-19 | E201: Zaplaceno | F201: 2018-09-17 | G201: 8639143.22 | H201: 0.02 | J201: 2018-09-25
... 91 more rows

Sheet Settings (hidden)
C2: faktura přijatá
C3: faktura vydaná
B5: list "graf"
B6: začátek kumulace | C6: 0

Sheet Výnosy&náklady
F4: Kontingenční analýza
A7: Výnosy/náklady
A8: ID | B8: Datum zdanitelného plnění | C8: částka | D8: Kumulace peněz | F8: Zaplaceno dne | G8: Součet z částka
A9: 554200 | B9: 2018-01-30 | C9: -89960.29 | D9: -89960.29 | F9: <30.01.2018
A10: 521514 | B10: 2018-01-31 | C10: -169988.67 | D10: -259948.96 | F10: I | G10: -725924.72
A11: 300001 | B11: 2018-01-31 | C11: -37408.42 | D11: -297357.38 | F11: II | G11: 3423156.251
A12: 839298 | B12: 2018-01-31 | C12: -411042.41 | D12: -708399.79 | F12: III | G12: 6701074.738
A13: 804533 | B13: 2018-01-31 | C13: -17524.93 | D13: -725924.72 | F13: IV | G13: 4360622.734
A14: 285850 | B14: 2018-02-26 | C14: -285106.19 | D14: -1011030.91 | F14: V | G14: 503121.6367
A15: 605056 | B15: 2018-02-28 | C15: -16137.19 | D15: -1027168.1 | F15: VI | G15: -6927858.198
A16: 441254 | B16: 2018-02-28 | C16: -759.63 | D16: -1027927.73 | F16: VII | G16: -5473716.83
A17: 739892 | B17: 2018-02-28 | C17: -10122.37 | D17: -1038050.1 | F17: VIII | G17: -2181580.606
A18: 478298 | B18: 2018-02-28 | C18: -10139.29 | D18: -1048189.39 | F18: IX | G18: 6858951.438
A19: 740427 | B19: 2018-02-28 | C19: -5662.29 | D19: -1053851.68 | F19: X | G19: -182605.1672
A20: 138286 | B20: 2018-02-28 | C20: 3751083.211 | D20: 2697231.531
A21: 650034 | B21: 2018-03-04 | C21: -1396.47 | D21: 2695835.061
A22: 702074 | B22: 2018-03-04 | C22: -1686.24 | D22: 2694148.821
A23: 240359 | B23: 2018-03-05 | C23: -2641.24 | D23: 2691507.581
A24: 299975 | B24: 2018-03-05 | C24: -14843.31 | D24: 2676664.271
A25: 325592 | B25: 2018-03-05 | C25: -42696.35 | D25: 2633967.921
A26: 654749 | B26: 2018-03-06 | C26: -23473.72 | D26: 2610494.201
A27: 567437 | B27: 2018-03-08 | C27: -4889.02 | D27: 2605605.181
A28: 488728 | B28: 2018-03-14 | C28: -2819.68 | D28: 2602785.501
A29: 465570 | B29: 2018-03-16 | C29: -766069.3333 | D29: 1836716.168
A30: 359374 | B30: 2018-03-19 | C30: -991.56 | D30: 1835724.608
A31: 747567 | B31: 2018-03-19 | C31: -10.91 | D31: 1835713.698
A32: 633929 | B32: 2018-03-30 | C32: -5615.36 | D32: 1830098.338
A33: 382227 | B33: 2018-03-30 | C33: -6830.11 | D33: 1823268.228
A34: 288778 | B34: 2018-03-31 | C34: -13724.06 | D34: 1809544.168
A35: 288318 | B35: 2018-03-31 | C35: -12085.29 | D35: 1797458.878
A36: 543360 | B36: 2018-03-31 | C36: -13876.86 | D36: 1783582.018
A37: 495201 | B37: 2018-03-31 | C37: -3819.97 | D37: 1779762.048
A38: 627049 | B38: 2018-03-31 | C38: -15948.92 | D38: 1763813.128
A39: 844245 | B39: 2018-03-31 | C39: -30450.62 | D39: 1733362.508
A40: 591618 | B40: 2018-03-31 | C40: -13245.47 | D40: 1720117.038
A41: 365735 | B41: 2018-03-31 | C41: -6204.61 | D41: 1713912.428
A42: 255260 | B42: 2018-03-31 | C42: -26049.47 | D42: 1687862.958
A43: 882407 | B43: 2018-03-31 | C43: 7710443.311 | D43: 9398306.269
A44: 489849 | B44: 2018-04-02 | C44: -1686.24 | D44: 9396620.029
A45: 357122 | B45: 2018-04-04 | C45: -14843.31 | D45: 9381776.719
A46: 486425 | B46: 2018-04-04 | C46: -65439.91 | D46: 9316336.809
A47: 380208 | B47: 2018-04-11 | C47: -272047.35 | D47: 9044289.459
A48: 392517 | B48: 2018-04-11 | C48: -224832.52 | D48: 8819456.939
A49: 709440 | B49: 2018-04-11 | C49: -50833.84 | D49: 8768623.099
A50: 297702 | B50: 2018-04-11 | C50: -42011.44 | D50: 8726611.659
A51: 457204 | B51: 2018-04-11 | C51: -173898.68 | D51: 8552712.979
A52: 534203 | B52: 2018-04-11 | C52: -193220.7556 | D52: 8359492.223
A53: 745056 | B53: 2018-04-12 | C53: -32091.02 | D53: 8327401.203
A54: 460180 | B54: 2018-04-13 | C54: -169988.67 | D54: 8157412.533
A55: 416424 | B55: 2018-04-14 | C55: -4410.43 | D55: 8153002.103
A56: 507947 | B56: 2018-04-15 | C56: -49070.24 | D56: 8103931.863
A57: 302043 | B57: 2018-04-17 | C57: -1002.47 | D57: 8102929.393
A58: 599115 | B58: 2018-04-18 | C58: -428183.4667 | D58: 7674745.927
A59: 576502 | B59: 2018-04-24 | C59: -8716.08 | D59: 7666029.847
A60: 548534 | B60: 2018-04-24 | C60: -1189.89 | D60: 7664839.957
A61: 345949 | B61: 2018-04-24 | C61: -1017.73 | D61: 7663822.227
A62: 379012 | B62: 2018-04-26 | C62: -1500.7 | D62: 7662321.527
A63: 359914 | B63: 2018-04-26 | C63: -18554.14 | D63: 7643767.387
A64: 434979 | B64: 2018-04-26 | C64: -27048.6 | D64: 7616718.787
A65: 656380 | B65: 2018-04-26 | C65: -7507.13 | D65: 7609211.657
A66: 624072 | B66: 2018-04-30 | C66: -759.63 | D66: 7608452.027
A67: 834954 | B67: 2018-04-30 | C67: -11482.83 | D67: 7596969.197
A68: 714636 | B68: 2018-04-30 | C68: -759.63 | D68: 7596209.567
A69: 679489 | B69: 2018-04-30 | C69: -759.63 | D69: 7595449.937
A70: 401265 | B70: 2018-04-30 | C70: -14288.87 | D70: 7581161.067
A71: 517980 | B71: 2018-04-30 | C71: -3264.44 | D71: 7577896.627
A72: 558531 | B72: 2018-04-30 | C72: -321.97 | D72: 7577574.657
A73: 426061 | B73: 2018-04-30 | C73: -16459.71 | D73: 7561114.947
A74: 567206 | B74: 2018-04-30 | C74: -28987.57 | D74: 7532127.377
A75: 786918 | B75: 2018-04-30 | C75: -6292.58 | D75: 7525834.797
A76: 327858 | B76: 2018-04-30 | C76: -1729.9 | D76: 7524104.897
A77: 770164 | B77: 2018-04-30 | C77: -19295.66 | D77: 7504809.237
A78: 704691 | B78: 2018-04-30 | C78: 6254119.767 | D78: 13758929
A79: 560997 | B79: 2018-05-01 | C79: -3136.47 | D79: 13755792.53
A80: 248240 | B80: 2018-05-01 | C80: -3218.05 | D80: 13752574.48
A81: 482053 | B81: 2018-05-02 | C81: -1686.24 | D81: 13750888.24
A82: 799249 | B82: 2018-05-02 | C82: -53381.35 | D82: 13697506.89
A83: 427095 | B83: 2018-05-02 | C83: -19952.79 | D83: 13677554.1
A84: 463429 | B84: 2018-05-03 | C84: -1114.34 | D84: 13676439.76
A85: 715072 | B85: 2018-05-05 | C85: -959.9 | D85: 13675479.86
A86: 820606 | B86: 2018-05-06 | C86: -4314.38 | D86: 13671165.48
A87: 566501 | B87: 2018-05-09 | C87: -42705.63 | D87: 13628459.85
A88: 403272 | B88: 2018-05-09 | C88: -9277.07 | D88: 13619182.78
A89: 677074 | B89: 2018-05-10 | C89: -31377.78 | D89: 13587805
A90: 739104 | B90: 2018-05-11 | C90: -3248.07 | D90: 13584556.93
A91: 770185 | B91: 2018-05-11 | C91: -1577.1 | D91: 13582979.83
A92: 297029 | B92: 2018-05-14 | C92: -4327252.067 | D92: 9255727.767
A93: 347825 | B93: 2018-05-14 | C93: -1002.47 | D93: 9254725.297
A94: 639366 | B94: 2018-05-15 | C94: -906280.7889 | D94: 8348444.508
A95: 642851 | B95: 2018-05-20 | C95: -9211.58 | D95: 8339232.928
A96: 673838 | B96: 2018-05-20 | C96: -4320.2 | D96: 8334912.728
A97: 384854 | B97: 2018-05-22 | C97: -307719.8111 | D97: 8027192.917
A98: 666126 | B98: 2018-05-24 | C98: -26339.13 | D98: 8000853.787
A99: 586579 | B99: 2018-05-28 | C99: -894174.76 | D99: 7106679.027
A100: 657609 | B100: 2018-05-29 | C100: -14853.68 | D100: 7091825.347
A101: 522463 | B101: 2018-05-30 | C101: -9659.07 | D101: 7082166.277
A102: 355379 | B102: 2018-05-30 | C102: -118638.99 | D102: 6963527.287
A103: 491164 | B103: 2018-05-31 | C103: -9029.86 | D103: 6954497.427
A104: 754199 | B104: 2018-05-31 | C104: -9141.73 | D104: 6945355.697
A105: 524157 | B105: 2018-05-31 | C105: -1875595.99 | D105: 5069759.707
A106: 681498 | B106: 2018-05-31 | C106: -7318.52 | D106: 5062441.187
A107: 307780 | B107: 2018-05-31 | C107: -25025.71 | D107: 5037415.477
A108: 304857 | B108: 2018-05-31 | C108: -3071.26 | D108: 5034344.217
A109: 415897 | B109: 2018-05-31 | C109: -16882.08 | D109: 5017462.137
A110: 504492 | B110: 2018-05-31 | C110: -183713.82 | D110: 4833748.317
A111: 275687 | B111: 2018-05-31 | C111: -3484.9 | D111: 4830263.417
A112: 497347 | B112: 2018-05-31 | C112: -12063.85 | D112: 4818199.567
A113: 264497 | B113: 2018-05-31 | C113: -3930.96 | D113: 4814268.607
A114: 927852 | B114: 2018-05-31 | C114: 9447782.033 | D114: 14262050.64
A115: 378759 | B115: 2018-06-02 | C115: -2231.95 | D115: 14259818.69
A116: 385727 | B116: 2018-06-02 | C116: -2483401.3 | D116: 11776417.39
A117: 408977 | B117: 2018-06-05 | C117: -8468.46 | D117: 11767948.93
A118: 789966 | B118: 2018-06-05 | C118: -263759.8333 | D118: 11504189.1
A119: 269734 | B119: 2018-06-05 | C119: -32112.74 | D119: 11472076.36
A120: 288923 | B120: 2018-06-06 | C120: -13486.81 | D120: 11458589.55
A121: 381978 | B121: 2018-06-07 | C121: -297.41 | D121: 11458292.14
A122: 543629 | B122: 2018-06-08 | C122: -2440581.011 | D122: 9017711.126
A123: 429565 | B123: 2018-06-08 | C123: -612207.0111 | D123: 8405504.114
A124: 384522 | B124: 2018-06-08 | C124: -2440581.011 | D124: 5964923.103
A125: 318305 | B125: 2018-06-09 | C125: -1214871.61 | D125: 4750051.493
A126: 265337 | B126: 2018-06-10 | C126: -11645.45 | D126: 4738406.043
A127: 767669 | B127: 2018-06-10 | C127: -54789.28 | D127: 4683616.763
A128: 821500 | B128: 2018-06-11 | C128: -3893.1 | D128: 4679723.663
A129: 560436 | B129: 2018-06-11 | C129: -1002.47 | D129: 4678721.193
A130: 843865 | B130: 2018-06-12 | C130: -2007.67 | D130: 4676713.523
A131: 675827 | B131: 2018-06-13 | C131: -251033.69 | D131: 4425679.833
A132: 566402 | B132: 2018-06-15 | C132: -218584.69 | D132: 4207095.143
A133: 432810 | B133: 2018-06-16 | C133: -1320.62 | D133: 4205774.523
A134: 443970 | B134: 2018-06-16 | C134: -2231.95 | D134: 4203542.573
A135: 766483 | B135: 2018-06-18 | C135: -7858.22 | D135: 4195684.353
A136: 842796 | B136: 2018-06-18 | C136: -10101.64 | D136: 4185582.713
A137: 495627 | B137: 2018-06-20 | C137: -3449.98 | D137: 4182132.733
A138: 619819 | B138: 2018-06-20 | C138: -7815.11 | D138: 4174317.623
A139: 583702 | B139: 2018-06-21 | C139: -2579645.756 | D139: 1594671.868
A140: 488203 | B140: 2018-06-22 | C140: -678.32 | D140: 1593993.548
A141: 546829 | B141: 2018-06-24 | C141: -3593201.48 | D141: -1999207.932
A142: 816851 | B142: 2018-06-24 | C142: -22047.31 | D142: -2021255.242
A143: 381869 | B143: 2018-06-24 | C143: -8129.82 | D143: -2029385.062
A144: 342940 | B144: 2018-06-25 | C144: -25489.02 | D144: -2054874.082
A145: 476555 | B145: 2018-06-27 | C145: -737804.29 | D145: -2792678.372
A146: 355597 | B146: 2018-06-27 | C146: -3559.07 | D146: -2796237.442
A147: 282023 | B147: 2018-06-29 | C147: -3789.96 | D147: -2800027.402
A148: 304413 | B148: 2018-06-30 | C148: -8345.54 | D148: -2808372.942
A149: 745430 | B149: 2018-06-30 | C149: -18728.22 | D149: -2827101.162
A150: 605327 | B150: 2018-06-30 | C150: -36621.51 | D150: -2863722.672
A151: 476575 | B151: 2018-06-30 | C151: -11694.02 | D151: -2875416.692
A152: 388274 | B152: 2018-06-30 | C152: -1237.07 | D152: -2876653.762
A153: 257489 | B153: 2018-06-30 | C153: -109335.73 | D153: -2985989.492
A154: 253163 | B154: 2018-06-30 | C154: 10320181.93 | D154: 7334192.442
A155: 430137 | B155: 2018-07-01 | C155: -174354.35 | D155: 7159838.092
A156: 682329 | B156: 2018-07-01 | C156: -184722.84 | D156: 6975115.252
A157: 736272 | B157: 2018-07-01 | C157: -23004.81 | D157: 6952110.442
A158: 841121 | B158: 2018-07-01 | C158: -51778.09 | D158: 6900332.352
A159: 600462 | B159: 2018-07-02 | C159: -3610.96 | D159: 6896721.392
A160: 764588 | B160: 2018-07-02 | C160: -48327.83 | D160: 6848393.562
A161: 320000 | B161: 2018-07-02 | C161: -39940.36 | D161: 6808453.202
A162: 268251 | B162: 2018-07-02 | C162: -150880.63 | D162: 6657572.572
A163: 709381 | B163: 2018-07-02 | C163: -124694.74 | D163: 6532877.832
A164: 723967 | B164: 2018-07-02 | C164: -2284.18 | D164: 6530593.652
A165: 657533 | B165: 2018-07-02 | C165: -35918.63 | D165: 6494675.022
A166: 678383 | B166: 2018-07-03 | C166: -2395.12 | D166: 6492279.902
A167: 449658 | B167: 2018-07-03 | C167: -54658.31 | D167: 6437621.592
A168: 273478 | B168: 2018-07-03 | C168: -3033.03 | D168: 6434588.562
A169: 755998 | B169: 2018-07-04 | C169: -30901.37 | D169: 6403687.192
A170: 557650 | B170: 2018-07-08 | C170: -2965866.056 | D170: 3437821.136
A171: 299990 | B171: 2018-07-09 | C171: -151.71 | D171: 3437669.426
A172: 739957 | B172: 2018-07-09 | C172: -189785.8111 | D172: 3247883.615
A173: 646363 | B173: 2018-07-10 | C173: -18211.98 | D173: 3229671.635
A174: 315570 | B174: 2018-07-11 | C174: -3119636.35 | D174: 110035.2849
A175: 526945 | B175: 2018-07-12 | C175: -22809.59 | D175: 87225.69485
A176: 592558 | B176: 2018-07-12 | C176: -1002.47 | D176: 86223.22485
A177: 693102 | B177: 2018-07-13 | C177: -3136.47 | D177: 83086.75485
A178: 511432 | B178: 2018-07-16 | C178: -2567.02 | D178: 80519.73485
A179: 821434 | B179: 2018-07-16 | C179: -79572.01 | D179: 947.7248526
A180: 269750 | B180: 2018-07-19 | C180: -8815452.265 | D180: -8814504.54
A181: 798224 | B181: 2018-07-20 | C181: -267949.07 | D181: -9082453.61
A182: 659356 | B182: 2018-07-20 | C182: -221543.8 | D182: -9303997.41
A183: 834076 | B183: 2018-07-20 | C183: -2401.67 | D183: -9306399.08
A184: 800543 | B184: 2018-07-21 | C184: -22505.08 | D184: -9328904.16
A185: 792363 | B185: 2018-07-21 | C185: -18598.89 | D185: -9347503.05
A186: 712489 | B186: 2018-07-21 | C186: -131076.81 | D186: -9478579.86
A187: 654840 | B187: 2018-07-21 | C187: -108323.44 | D187: -9586903.3
A188: 551576 | B188: 2018-07-22 | C188: -6407.73 | D188: -9593311.03
A189: 647379 | B189: 2018-07-22 | C189: -3960.76 | D189: -9597271.79
A190: 788036 | B190: 2018-07-24 | C190: -26531.21 | D190: -9623803
A191: 588870 | B191: 2018-07-24 | C191: -6966.53 | D191: -9630769.53
A192: 634606 | B192: 2018-07-26 | C192: -165.35 | D192: -9630934.88
A193: 630658 | B193: 2018-07-27 | C193: -5812.56 | D193: -9636747.44
A194: 828871 | B194: 2018-07-30 | C194: -2428.41 | D194: -9639175.85
A195: 841676 | B195: 2018-07-30 | C195: -236194.75 | D195: -9875370.6
A196: 562096 | B196: 2018-07-30 | C196: -85387.79 | D196: -9960758.39
A197: 276610 | B197: 2018-07-31 | C197: -15398.41 | D197: -9976156.8
A198: 623630 | B198: 2018-07-31 | C198: -23869.36 | D198: -10000026.16
A199: 561874 | B199: 2018-07-31 | C199: -1247.98 | D199: -10001274.14
A200: 829295 | B200: 2018-07-31 | C200: -927.16 | D200: -10002201.3
A201: 610389 | B201: 2018-07-31 | C201: -2971.51 | D201: -10005172.81
A202: 949889 | B202: 2018-07-31 | C202: 11865648.42 | D202: 1860475.612
A203: 525075 | B203: 2018-08-01 | C203: -3939.48 | D203: 1856536.132
A204: 708874 | B204: 2018-08-01 | C204: -442896.6 | D204: 1413639.532
A205: 767962 | B205: 2018-08-01 | C205: -235746.72 | D205: 1177892.812
... 96 more rows

Sheet plán_Výnosy&náklady
B1: *Plán na počátku výstavby
C3: Plán | E3: Shoda | F3: Skutečnost | H3: Shoda | I3: Predikce zjišťovací protokol
C4: Měsíc | D4: plán výnos | E4: skutečnost/plán | F4: Měsíc | G4: Skutečný výnos | H4: skutečnost/predikce
B5: 2018 | C5: 2018-01-15 | D5: 1637130 | E5: - | F5: - | G5: 0 | H5: - | I5: 0
C6: 2018-02-15 | D6: 3819970 | E6: =G6/D6 -> 0.9819666676 | F6: 2018-02-28 | G6: 3751083.211 | H6: - | I6: 0
C7: 2018-03-15 | D7: 7094230 | E7: =G7/D7 -> 1.086861197 | F7: 2018-03-31 | G7: 7710443.311 | H7: =G7/I7 -> 1.086861197 | I7: 7094230
C8: 2018-04-15 | D8: 9822780 | E8: 0.6366954942 | F8: 2018-04-30 | G8: 6254119.767 | H8: 0.7253492972 | I8: 8622218
C9: 2018-05-15 | D9: 10368490 | E9: 0.911201345 | F9: 2018-05-31 | G9: 9447782.033 | H9: 1.021405637 | I9: 9249784.5
C10: 2018-06-15 | D10: 10368490 | E10: 0.9953408773 | F10: 2018-06-30 | G10: 10320181.93 | H10: 1.077577018 | I10: 9577210.5
C11: 2018-07-15 | D11: 10914200 | E11: 1.087175278 | F11: 2018-07-31 | G11: 11865648.42 | H11: 1.090656873 | I11: 10879359.69
C12: 2018-08-15 | D12: 10914200 | E12: 0.8247243886 | F12: 2018-08-31 | G12: 9001206.922 | H12: 0.8309565628 | I12: 10832343.5
C13: 2018-09-15 | D13: 10914200 | E13: 0.8927772779 | F13: 2018-09-30 | G13: 9743949.767 | H13: 0.9797281514 | I13: 9945564.75
C14: 2018-10-15 | D14: 9822780 | E14: 1.516815926 | F14: 2018-10-31 | G14: 14899349.14 | H14: 1.443257807 | I14: 10323414.9
C15: 2018-11-15 | D15: 8185650 | E15: - | F15: - | G15: - | H15: - | I15: 9118814.1
C16: 2018-12-15 | D16: 8185650 | E16: - | F16: - | G16: - | H16: - | I16: -
B17: 2019 | C17: 2019-01-15 | D17: 8185650 | E17: - | F17: - | G17: - | H17: - | I17: -
C18: 2019-02-15 | D18: 16371300 | E18: - | F18: - | G18: - | H18: - | I18: -
C19: 2019-03-15 | D19: 26194080 | E19: - | F19: - | G19: - | H19: - | I19: -
C20: 2019-04-15 | D20: 43111090 | E20: - | F20: - | G20: - | H20: - | I20: -
C21: 2019-05-15 | D21: 46385350 | E21: - | F21: - | G21: - | H21: - | I21: -
C22: 2019-06-15 | D22: 46931060 | E22: - | F22: - | G22: - | H22: - | I22: -
C23: 2019-07-15 | D23: 46931060 | E23: - | F23: - | G23: - | H23: - | I23: -
C24: 2019-08-15 | D24: 34925440 | E24: - | F24: - | G24: - | H24: - | I24: -
C25: 2019-09-15 | D25: 3727720.999 | E25: - | F25: - | G25: - | H25: - | I25: -
B26: Průměr | E26: =AVERAGE(E5:E25) -> 0.9926176058 | H26: =AVERAGE(H5:H25) -> 1.031974068
B28: medián | E28: =MEDIAN(E6:E14) -> 0.9819666676 | H28: =MEDIAN(H6:H14) -> 1.049491328

Sheet Příjmy&Výdaje
A7: Uskutečněné Příjmy/Výdaje
A8: ID | B8: zaplaceno dne | C8: částka | D8: Kumulace peněz
A9: 1X | B9: 2018-03-09 | C9: 818565 | D9: 818565
A10: 521514 | B10: 2018-04-05 | C10: -169988.67 | D10: 648576.33
A11: 300001 | B11: 2018-04-05 | C11: -37408.42 | D11: 611167.91
A12: 605056 | B12: 2018-04-05 | C12: -16137.19 | D12: 595030.72
A13: 441254 | B13: 2018-04-05 | C13: -759.63 | D13: 594271.09
A14: 839298 | B14: 2018-04-05 | C14: -411042.41 | D14: 183228.68
A15: 804533 | B15: 2018-04-05 | C15: -17524.93 | D15: 165703.75
A16: 739892 | B16: 2018-04-05 | C16: -10122.37 | D16: 155581.38
A17: 478298 | B17: 2018-04-05 | C17: -10139.29 | D17: 145442.09
A18: 554200 | B18: 2018-04-05 | C18: -89960.29 | D18: 55481.8
A19: 138286 | B19: 2018-04-28 | C19: 3375974.89 | D19: 3431456.69
A20: 288778 | B20: 2018-05-04 | C20: -13724.06 | D20: 3417732.63
A21: 740427 | B21: 2018-05-04 | C21: -5662.29 | D21: 3412070.34
A22: 288318 | B22: 2018-05-04 | C22: -12085.29 | D22: 3399985.05
A23: 488728 | B23: 2018-05-04 | C23: -2819.68 | D23: 3397165.37
A24: 543360 | B24: 2018-05-04 | C24: -13876.86 | D24: 3383288.51
A25: 495201 | B25: 2018-05-04 | C25: -3819.97 | D25: 3379468.54
A26: 627049 | B26: 2018-05-04 | C26: -15948.92 | D26: 3363519.62
A27: 844245 | B27: 2018-05-04 | C27: -30450.62 | D27: 3333069
A28: 591618 | B28: 2018-05-04 | C28: -13245.47 | D28: 3319823.53
A29: 650034 | B29: 2018-05-04 | C29: -1396.47 | D29: 3318427.06
A30: 702074 | B30: 2018-05-04 | C30: -1686.24 | D30: 3316740.82
A31: 240359 | B31: 2018-05-04 | C31: -2641.24 | D31: 3314099.58
A32: 299975 | B32: 2018-05-04 | C32: -14843.31 | D32: 3299256.27
A33: 325592 | B33: 2018-05-04 | C33: -42696.35 | D33: 3256559.92
A34: 365735 | B34: 2018-05-04 | C34: -6204.61 | D34: 3250355.31
A35: 624072 | B35: 2018-05-04 | C35: -759.63 | D35: 3249595.68
A36: 255260 | B36: 2018-05-04 | C36: -26049.47 | D36: 3223546.21
A37: 654749 | B37: 2018-05-04 | C37: -23473.72 | D37: 3200072.49
A38: 834954 | B38: 2018-05-04 | C38: -11482.83 | D38: 3188589.66
A39: 567437 | B39: 2018-05-04 | C39: -4889.02 | D39: 3183700.64
A40: 714636 | B40: 2018-05-04 | C40: -759.63 | D40: 3182941.01
A41: 679489 | B41: 2018-05-04 | C41: -759.63 | D41: 3182181.38
A42: 633929 | B42: 2018-05-14 | C42: -5615.36 | D42: 3176566.02
A43: 382227 | B43: 2018-05-14 | C43: -6830.11 | D43: 3169735.91
A44: 285850 | B44: 2018-05-21 | C44: -285106.19 | D44: 2884629.72
A45: 560997 | B45: 2018-05-21 | C45: -3136.47 | D45: 2881493.25
A46: 248240 | B46: 2018-05-21 | C46: -3218.05 | D46: 2878275.2
A47: 465570 | B47: 2018-05-21 | C47: -689462.4 | D47: 2188812.8
A48: 401265 | B48: 2018-05-21 | C48: -14288.87 | D48: 2174523.93
A49: 517980 | B49: 2018-05-21 | C49: -3264.44 | D49: 2171259.49
A50: 359374 | B50: 2018-05-21 | C50: -991.56 | D50: 2170267.93
A51: 747567 | B51: 2018-05-21 | C51: -10.91 | D51: 2170257.02
A52: 882407 | B52: 2018-05-21 | C52: 6939398.98 | D52: 9109656
A53: 558531 | B53: 2018-06-01 | C53: -321.97 | D53: 9109334.03
A54: 426061 | B54: 2018-06-01 | C54: -16459.71 | D54: 9092874.32
A55: 489849 | B55: 2018-06-01 | C55: -1686.24 | D55: 9091188.08
A56: 463429 | B56: 2018-06-01 | C56: -1114.34 | D56: 9090073.74
A57: 357122 | B57: 2018-06-01 | C57: -14843.31 | D57: 9075230.43
A58: 486425 | B58: 2018-06-01 | C58: -65439.91 | D58: 9009790.52
A59: 820606 | B59: 2018-06-08 | C59: -4314.38 | D59: 9005476.14
A60: 567206 | B60: 2018-06-08 | C60: -28987.57 | D60: 8976488.57
A61: 491164 | B61: 2018-06-08 | C61: -9029.86 | D61: 8967458.71
A62: 380208 | B62: 2018-06-08 | C62: -272047.35 | D62: 8695411.36
A63: 392517 | B63: 2018-06-08 | C63: -224832.52 | D63: 8470578.84
A64: 709440 | B64: 2018-06-08 | C64: -50833.84 | D64: 8419745
A65: 297702 | B65: 2018-06-08 | C65: -42011.44 | D65: 8377733.56
A66: 457204 | B66: 2018-06-08 | C66: -173898.68 | D66: 8203834.88
A67: 534203 | B67: 2018-06-08 | C67: -173898.68 | D67: 8029936.2
A68: 379012 | B68: 2018-06-15 | C68: -1500.7 | D68: 8028435.5
A69: 745056 | B69: 2018-06-15 | C69: -32091.02 | D69: 7996344.48
A70: 460180 | B70: 2018-06-15 | C70: -169988.67 | D70: 7826355.81
A71: 416424 | B71: 2018-06-15 | C71: -4410.43 | D71: 7821945.38
A72: 754199 | B72: 2018-06-15 | C72: -9141.73 | D72: 7812803.65
A73: 507947 | B73: 2018-06-15 | C73: -49070.24 | D73: 7763733.41
A74: 524157 | B74: 2018-06-15 | C74: -1875595.99 | D74: 5888137.42
A75: 786918 | B75: 2018-06-15 | C75: -6292.58 | D75: 5881844.84
A76: 599115 | B76: 2018-06-15 | C76: -385365.12 | D76: 5496479.72
A77: 681498 | B77: 2018-06-15 | C77: -7318.52 | D77: 5489161.2
A78: 408977 | B78: 2018-06-15 | C78: -8468.46 | D78: 5480692.74
A79: 307780 | B79: 2018-06-15 | C79: -25025.71 | D79: 5455667.03
A80: 288923 | B80: 2018-06-15 | C80: -13486.81 | D80: 5442180.22
A81: 302043 | B81: 2018-06-22 | C81: -1002.47 | D81: 5441177.75
A82: 576502 | B82: 2018-06-22 | C82: -8716.08 | D82: 5432461.67
A83: 566501 | B83: 2018-06-22 | C83: -42705.63 | D83: 5389756.04
A84: 548534 | B84: 2018-06-22 | C84: -1189.89 | D84: 5388566.15
A85: 345949 | B85: 2018-06-22 | C85: -1017.73 | D85: 5387548.42
A86: 304857 | B86: 2018-06-22 | C86: -3071.26 | D86: 5384477.16
A87: 415897 | B87: 2018-06-22 | C87: -16882.08 | D87: 5367595.08
A88: 359914 | B88: 2018-06-22 | C88: -18554.14 | D88: 5349040.94
A89: 739104 | B89: 2018-06-22 | C89: -3248.07 | D89: 5345792.87
A90: 770185 | B90: 2018-06-22 | C90: -1577.1 | D90: 5344215.77
A91: 434979 | B91: 2018-06-22 | C91: -27048.6 | D91: 5317167.17
A92: 656380 | B92: 2018-06-22 | C92: -7507.13 | D92: 5309660.04
A93: 566402 | B93: 2018-06-22 | C93: -218584.69 | D93: 5091075.35
A94: 704691 | B94: 2018-06-24 | C94: 5628707.79 | D94: 10719783.14
A95: 657609 | B95: 2018-06-29 | C95: -14853.68 | D95: 10704929.46
A96: 327858 | B96: 2018-06-29 | C96: -1729.9 | D96: 10703199.56
A97: 770164 | B97: 2018-06-29 | C97: -19295.66 | D97: 10683903.9
A98: 504492 | B98: 2018-06-29 | C98: -183713.82 | D98: 10500190.08
A99: 482053 | B99: 2018-06-29 | C99: -1686.24 | D99: 10498503.84
A100: 799249 | B100: 2018-06-29 | C100: -53381.35 | D100: 10445122.49
A101: 427095 | B101: 2018-06-29 | C101: -19952.79 | D101: 10425169.7
A102: 715072 | B102: 2018-07-13 | C102: -959.9 | D102: 10424209.8
A103: 381978 | B103: 2018-07-13 | C103: -297.41 | D103: 10423912.39
A104: 403272 | B104: 2018-07-13 | C104: -9277.07 | D104: 10414635.32
A105: 677074 | B105: 2018-07-13 | C105: -31377.78 | D105: 10383257.54
A106: 275687 | B106: 2018-07-13 | C106: -3484.9 | D106: 10379772.64
A107: 843865 | B107: 2018-07-13 | C107: -2007.67 | D107: 10377764.97
A108: 297029 | B108: 2018-07-13 | C108: -3894526.86 | D108: 6483238.11
A109: 639366 | B109: 2018-07-13 | C109: -815652.71 | D109: 5667585.4
A110: 497347 | B110: 2018-07-13 | C110: -12063.85 | D110: 5655521.55
A111: 432810 | B111: 2018-07-20 | C111: -1320.62 | D111: 5654200.93
A112: 642851 | B112: 2018-07-20 | C112: -9211.58 | D112: 5644989.35
A113: 673838 | B113: 2018-07-20 | C113: -3888.18 | D113: 5641101.17
A114: 495627 | B114: 2018-07-20 | C114: -3449.98 | D114: 5637651.19
A115: 384854 | B115: 2018-07-20 | C115: -276947.83 | D115: 5360703.36
A116: 488203 | B116: 2018-07-20 | C116: -678.32 | D116: 5360025.04
A117: 927852 | B117: 2018-07-23 | C117: 8503003.83 | D117: 13863028.87
A118: 2X | B118: 2018-07-30 | C118: 1091420 | D118: 14954448.87
A119: 821500 | B119: 2018-07-31 | C119: -3893.1 | D119: 14950555.77
A120: 347825 | B120: 2018-07-31 | C120: -1002.47 | D120: 14949553.3
A121: 304413 | B121: 2018-07-31 | C121: -8345.54 | D121: 14941207.76
A122: 666126 | B122: 2018-07-31 | C122: -26339.13 | D122: 14914868.63
A123: 265337 | B123: 2018-07-31 | C123: -11645.45 | D123: 14903223.18
A124: 745430 | B124: 2018-07-31 | C124: -18728.22 | D124: 14884494.96
A125: 586579 | B125: 2018-07-31 | C125: -894174.76 | D125: 13990320.2
A126: 605327 | B126: 2018-07-31 | C126: -36621.51 | D126: 13953698.69
A127: 693102 | B127: 2018-07-31 | C127: -3136.47 | D127: 13950562.22
A128: 522463 | B128: 2018-07-31 | C128: -9659.07 | D128: 13940903.15
A129: 355379 | B129: 2018-07-31 | C129: -118638.99 | D129: 13822264.16
A130: 476575 | B130: 2018-07-31 | C130: -11694.02 | D130: 13810570.14
A131: 430137 | B131: 2018-07-31 | C131: -174354.35 | D131: 13636215.79
A132: 682329 | B132: 2018-07-31 | C132: -184722.84 | D132: 13451492.95
A133: 736272 | B133: 2018-07-31 | C133: -23004.81 | D133: 13428488.14
A134: 841121 | B134: 2018-07-31 | C134: -51778.09 | D134: 13376710.05
A135: 600462 | B135: 2018-07-31 | C135: -3610.96 | D135: 13373099.09
A136: 378759 | B136: 2018-07-31 | C136: -2231.95 | D136: 13370867.14
A137: 764588 | B137: 2018-07-31 | C137: -48327.83 | D137: 13322539.31
A138: 320000 | B138: 2018-07-31 | C138: -39940.36 | D138: 13282598.95
A139: 268251 | B139: 2018-07-31 | C139: -150880.63 | D139: 13131718.32
A140: 709381 | B140: 2018-07-31 | C140: -124694.74 | D140: 13007023.58
A141: 385727 | B141: 2018-07-31 | C141: -2235061.17 | D141: 10771962.41
A142: 476555 | B142: 2018-07-31 | C142: -737804.29 | D142: 10034158.12
A143: 789966 | B143: 2018-08-07 | C143: -237383.85 | D143: 9796774.27
A144: 269734 | B144: 2018-08-07 | C144: -32112.74 | D144: 9764661.53
A145: 543629 | B145: 2018-08-07 | C145: -2196522.91 | D145: 7568138.62
A146: 429565 | B146: 2018-08-07 | C146: -550986.31 | D146: 7017152.31
A147: 299990 | B147: 2018-08-07 | C147: -151.71 | D147: 7017000.6
A148: 318305 | B148: 2018-08-07 | C148: -1214871.61 | D148: 5802128.99
A149: 767669 | B149: 2018-08-07 | C149: -54789.28 | D149: 5747339.71
A150: 388274 | B150: 2018-08-07 | C150: -1237.07 | D150: 5746102.64
A151: 264497 | B151: 2018-08-14 | C151: -3930.96 | D151: 5742171.68
A152: 384522 | B152: 2018-08-14 | C152: -2196522.91 | D152: 3545648.77
A153: 560436 | B153: 2018-08-14 | C153: -1002.47 | D153: 3544646.3
A154: 526945 | B154: 2018-08-14 | C154: -22809.59 | D154: 3521836.71
A155: 675827 | B155: 2018-08-14 | C155: -251033.69 | D155: 3270803.02
A156: 511432 | B156: 2018-08-14 | C156: -2567.02 | D156: 3268236
A157: 443970 | B157: 2018-08-14 | C157: -2231.95 | D157: 3266004.05
A158: 821434 | B158: 2018-08-14 | C158: -79572.01 | D158: 3186432.04
A159: 798224 | B159: 2018-08-21 | C159: -267949.07 | D159: 2918482.97
A160: 659356 | B160: 2018-08-21 | C160: -221543.8 | D160: 2696939.17
A161: 276610 | B161: 2018-08-21 | C161: -15398.41 | D161: 2681540.76
A162: 766483 | B162: 2018-08-21 | C162: -7858.22 | D162: 2673682.54
A163: 842796 | B163: 2018-08-21 | C163: -10101.64 | D163: 2663580.9
A164: 619819 | B164: 2018-08-21 | C164: -7815.11 | D164: 2655765.79
A165: 800543 | B165: 2018-08-21 | C165: -22505.08 | D165: 2633260.71
A166: 792363 | B166: 2018-08-21 | C166: -18598.89 | D166: 2614661.82
A167: 712489 | B167: 2018-08-21 | C167: -131076.81 | D167: 2483585.01
A168: 654840 | B168: 2018-08-21 | C168: -108323.44 | D168: 2375261.57
A169: 583702 | B169: 2018-08-21 | C169: -2321681.18 | D169: 53580.39
A170: 253163 | B170: 2018-08-23 | C170: 9288163.74 | D170: 9341744.13
A171: 546829 | B171: 2018-08-28 | C171: -3521337.45 | D171: 5820406.68
A172: 816851 | B172: 2018-08-28 | C172: -22047.31 | D172: 5798359.37
A173: 623630 | B173: 2018-08-28 | C173: -23869.36 | D173: 5774490.01
A174: 646363 | B174: 2018-08-28 | C174: -18211.98 | D174: 5756278.03
A175: 342940 | B175: 2018-08-28 | C175: -25489.02 | D175: 5730789.01
A176: 634606 | B176: 2018-08-28 | C176: -165.35 | D176: 5730623.66
A177: 282023 | B177: 2018-08-28 | C177: -3789.96 | D177: 5726833.7
A178: 828871 | B178: 2018-08-28 | C178: -2428.41 | D178: 5724405.29
A179: 841676 | B179: 2018-08-28 | C179: -236194.75 | D179: 5488210.54
A180: 257489 | B180: 2018-08-28 | C180: -109335.73 | D180: 5378874.81
A181: 355597 | B181: 2018-09-04 | C181: -3559.07 | D181: 5375315.74
A182: 525075 | B182: 2018-09-04 | C182: -3939.48 | D182: 5371376.26
A183: 723967 | B183: 2018-09-04 | C183: -2284.18 | D183: 5369092.08
A184: 708874 | B184: 2018-09-04 | C184: -442896.6 | D184: 4926195.48
A185: 767962 | B185: 2018-09-04 | C185: -235746.72 | D185: 4690448.76
A186: 657533 | B186: 2018-09-04 | C186: -35918.63 | D186: 4654530.13
A187: 677036 | B187: 2018-09-04 | C187: -3833.07 | D187: 4650697.06
A188: 678383 | B188: 2018-09-04 | C188: -2395.12 | D188: 4648301.94
A189: 449658 | B189: 2018-09-04 | C189: -54658.31 | D189: 4593643.63
A190: 273478 | B190: 2018-09-04 | C190: -3033.03 | D190: 4590610.6
A191: 755998 | B191: 2018-09-04 | C191: -30901.37 | D191: 4559709.23
A192: 706384 | B192: 2018-09-04 | C192: -3961.85 | D192: 4555747.38
A193: 551576 | B193: 2018-09-04 | C193: -6407.73 | D193: 4549339.65
A194: 423746 | B194: 2018-09-04 | C194: -19049.64 | D194: 4530290.01
A195: 641170 | B195: 2018-09-04 | C195: -15743.73 | D195: 4514546.28
A196: 507392 | B196: 2018-09-04 | C196: -131071.36 | D196: 4383474.92
A197: 739329 | B197: 2018-09-04 | C197: -108323.44 | D197: 4275151.48
A198: 557650 | B198: 2018-09-04 | C198: -2669279.45 | D198: 1605872.03
A199: 519134 | B199: 2018-09-04 | C199: -260994.99 | D199: 1344877.04
A200: 762865 | B200: 2018-09-04 | C200: -449665.04 | D200: 895212
A201: 562096 | B201: 2018-09-04 | C201: -85387.79 | D201: 809824.21
A202: 561874 | B202: 2018-09-11 | C202: -1247.98 | D202: 808576.23
A203: 739957 | B203: 2018-09-11 | C203: -170807.23 | D203: 637769
A204: 829295 | B204: 2018-09-11 | C204: -927.16 | D204: 636841.84
A205: 592558 | B205: 2018-09-11 | C205: -1002.47 | D205: 635839.37
A206: 504157 | B206: 2018-09-11 | C206: -2085.16 | D206: 633754.21
... 40 more rows

Sheet plán_Příjmy&Výdaje
A7: skutečné Příjmy/Výdaje
A8: ID | B8: Splatné dne | C8: částka | D8: Kumulace peněz
A9: 521514 | B9: 2018-02-15 | C9: -169988.67 | D9: -169988.67
A10: 300001 | B10: 2018-03-04 | C10: -37408.42 | D10: -207397.09
A11: 1X | B11: 2018-03-09 | C11: 818565 | D11: 611167.91
A12: 605056 | B12: 2018-03-11 | C12: -16137.19 | D12: 595030.72
A13: 441254 | B13: 2018-03-14 | C13: -759.63 | D13: 594271.09
A14: 839298 | B14: 2018-03-16 | C14: -411042.41 | D14: 183228.68
A15: 804533 | B15: 2018-03-19 | C15: -17524.93 | D15: 165703.75
A16: 739892 | B16: 2018-03-21 | C16: -10122.37 | D16: 155581.38
A17: 478298 | B17: 2018-03-28 | C17: -10139.29 | D17: 145442.09
A18: 554200 | B18: 2018-03-31 | C18: -89960.29 | D18: 55481.8
A19: 288778 | B19: 2018-04-05 | C19: -13724.06 | D19: 41757.74
A20: 740427 | B20: 2018-04-09 | C20: -5662.29 | D20: 36095.45
A21: 288318 | B21: 2018-04-12 | C21: -12085.29 | D21: 24010.16
A22: 488728 | B22: 2018-04-13 | C22: -2819.68 | D22: 21190.48
A23: 543360 | B23: 2018-04-20 | C23: -13876.86 | D23: 7313.62
A24: 495201 | B24: 2018-04-21 | C24: -3819.97 | D24: 3493.65
A25: 627049 | B25: 2018-04-24 | C25: -15948.92 | D25: -12455.27
A26: 844245 | B26: 2018-04-24 | C26: -30450.62 | D26: -42905.89
A27: 591618 | B27: 2018-04-27 | C27: -13245.47 | D27: -56151.36
A28: 285850 | B28: 2018-04-27 | C28: -285106.19 | D28: -341257.55
A29: 138286 | B29: 2018-04-28 | C29: 3375974.89 | D29: 3034717.34
A30: 650034 | B30: 2018-05-03 | C30: -1396.47 | D30: 3033320.87
A31: 702074 | B31: 2018-05-03 | C31: -1686.24 | D31: 3031634.63
A32: 240359 | B32: 2018-05-04 | C32: -2641.24 | D32: 3028993.39
A33: 299975 | B33: 2018-05-04 | C33: -14843.31 | D33: 3014150.08
A34: 325592 | B34: 2018-05-04 | C34: -42696.35 | D34: 2971453.73
A35: 365735 | B35: 2018-05-04 | C35: -6204.61 | D35: 2965249.12
A36: 624072 | B36: 2018-05-04 | C36: -759.63 | D36: 2964489.49
A37: 255260 | B37: 2018-05-05 | C37: -26049.47 | D37: 2938440.02
A38: 654749 | B38: 2018-05-05 | C38: -23473.72 | D38: 2914966.3
A39: 834954 | B39: 2018-05-06 | C39: -11482.83 | D39: 2903483.47
A40: 567437 | B40: 2018-05-07 | C40: -4889.02 | D40: 2898594.45
A41: 714636 | B41: 2018-05-10 | C41: -759.63 | D41: 2897834.82
A42: 679489 | B42: 2018-05-11 | C42: -759.63 | D42: 2897075.19
A43: 633929 | B43: 2018-05-14 | C43: -5615.36 | D43: 2891459.83
A44: 382227 | B44: 2018-05-14 | C44: -6830.11 | D44: 2884629.72
A45: 560997 | B45: 2018-05-15 | C45: -3136.47 | D45: 2881493.25
A46: 248240 | B46: 2018-05-15 | C46: -3218.05 | D46: 2878275.2
A47: 465570 | B47: 2018-05-15 | C47: -689462.4 | D47: 2188812.8
A48: 401265 | B48: 2018-05-17 | C48: -14288.87 | D48: 2174523.93
A49: 517980 | B49: 2018-05-17 | C49: -3264.44 | D49: 2171259.49
A50: 359374 | B50: 2018-05-18 | C50: -991.56 | D50: 2170267.93
A51: 747567 | B51: 2018-05-18 | C51: -10.91 | D51: 2170257.02
A52: 882407 | B52: 2018-05-21 | C52: 6939398.98 | D52: 9109656
A53: 379012 | B53: 2018-05-26 | C53: -1500.7 | D53: 9108155.3
A54: 558531 | B54: 2018-05-30 | C54: -321.97 | D54: 9107833.33
A55: 426061 | B55: 2018-05-30 | C55: -16459.71 | D55: 9091373.62
A56: 489849 | B56: 2018-06-01 | C56: -1686.24 | D56: 9089687.38
A57: 463429 | B57: 2018-06-02 | C57: -1114.34 | D57: 9088573.04
A58: 357122 | B58: 2018-06-03 | C58: -14843.31 | D58: 9073729.73
A59: 486425 | B59: 2018-06-03 | C59: -65439.91 | D59: 9008289.82
A60: 820606 | B60: 2018-06-05 | C60: -4314.38 | D60: 9003975.44
A61: 567206 | B61: 2018-06-06 | C61: -28987.57 | D61: 8974987.87
A62: 491164 | B62: 2018-06-08 | C62: -9029.86 | D62: 8965958.01
A63: 380208 | B63: 2018-06-10 | C63: -272047.35 | D63: 8693910.66
A64: 392517 | B64: 2018-06-10 | C64: -224832.52 | D64: 8469078.14
A65: 709440 | B65: 2018-06-10 | C65: -50833.84 | D65: 8418244.3
A66: 297702 | B66: 2018-06-10 | C66: -42011.44 | D66: 8376232.86
A67: 457204 | B67: 2018-06-10 | C67: -173898.68 | D67: 8202334.18
A68: 534203 | B68: 2018-06-10 | C68: -173898.68 | D68: 8028435.5
A69: 745056 | B69: 2018-06-11 | C69: -32091.02 | D69: 7996344.48
A70: 460180 | B70: 2018-06-12 | C70: -169988.67 | D70: 7826355.81
A71: 416424 | B71: 2018-06-13 | C71: -4410.43 | D71: 7821945.38
A72: 754199 | B72: 2018-06-13 | C72: -9141.73 | D72: 7812803.65
A73: 507947 | B73: 2018-06-14 | C73: -49070.24 | D73: 7763733.41
A74: 524157 | B74: 2018-06-14 | C74: -1875595.99 | D74: 5888137.42
A75: 786918 | B75: 2018-06-15 | C75: -6292.58 | D75: 5881844.84
A76: 302043 | B76: 2018-06-16 | C76: -1002.47 | D76: 5880842.37
A77: 599115 | B77: 2018-06-17 | C77: -385365.12 | D77: 5495477.25
A78: 681498 | B78: 2018-06-18 | C78: -7318.52 | D78: 5488158.73
A79: 408977 | B79: 2018-06-19 | C79: -8468.46 | D79: 5479690.27
A80: 307780 | B80: 2018-06-19 | C80: -25025.71 | D80: 5454664.56
A81: 288923 | B81: 2018-06-20 | C81: -13486.81 | D81: 5441177.75
A82: 576502 | B82: 2018-06-23 | C82: -8716.08 | D82: 5432461.67
A83: 566501 | B83: 2018-06-23 | C83: -42705.63 | D83: 5389756.04
A84: 548534 | B84: 2018-06-23 | C84: -1189.89 | D84: 5388566.15
A85: 345949 | B85: 2018-06-23 | C85: -1017.73 | D85: 5387548.42
A86: 304857 | B86: 2018-06-24 | C86: -3071.26 | D86: 5384477.16
A87: 415897 | B87: 2018-06-24 | C87: -16882.08 | D87: 5367595.08
A88: 704691 | B88: 2018-06-24 | C88: 5628707.79 | D88: 10996302.87
A89: 359914 | B89: 2018-06-25 | C89: -18554.14 | D89: 10977748.73
A90: 739104 | B90: 2018-06-25 | C90: -3248.07 | D90: 10974500.66
A91: 770185 | B91: 2018-06-25 | C91: -1577.1 | D91: 10972923.56
A92: 434979 | B92: 2018-06-25 | C92: -27048.6 | D92: 10945874.96
A93: 656380 | B93: 2018-06-25 | C93: -7507.13 | D93: 10938367.83
A94: 657609 | B94: 2018-06-28 | C94: -14853.68 | D94: 10923514.15
A95: 327858 | B95: 2018-06-29 | C95: -1729.9 | D95: 10921784.25
A96: 770164 | B96: 2018-06-29 | C96: -19295.66 | D96: 10902488.59
A97: 504492 | B97: 2018-06-30 | C97: -183713.82 | D97: 10718774.77
A98: 482053 | B98: 2018-07-01 | C98: -1686.24 | D98: 10717088.53
A99: 799249 | B99: 2018-07-01 | C99: -53381.35 | D99: 10663707.18
A100: 427095 | B100: 2018-07-01 | C100: -19952.79 | D100: 10643754.39
A101: 715072 | B101: 2018-07-04 | C101: -959.9 | D101: 10642794.49
A102: 381978 | B102: 2018-07-07 | C102: -297.41 | D102: 10642497.08
A103: 403272 | B103: 2018-07-08 | C103: -9277.07 | D103: 10633220.01
A104: 677074 | B104: 2018-07-09 | C104: -31377.78 | D104: 10601842.23
A105: 275687 | B105: 2018-07-10 | C105: -3484.9 | D105: 10598357.33
A106: 821500 | B106: 2018-07-11 | C106: -3893.1 | D106: 10594464.23
A107: 843865 | B107: 2018-07-12 | C107: -2007.67 | D107: 10592456.56
A108: 297029 | B108: 2018-07-13 | C108: -3894526.86 | D108: 6697929.7
A109: 347825 | B109: 2018-07-13 | C109: -1002.47 | D109: 6696927.23
A110: 639366 | B110: 2018-07-14 | C110: -815652.71 | D110: 5881274.52
A111: 497347 | B111: 2018-07-15 | C111: -12063.85 | D111: 5869210.67
A112: 432810 | B112: 2018-07-16 | C112: -1320.62 | D112: 5867890.05
A113: 304413 | B113: 2018-07-16 | C113: -8345.54 | D113: 5859544.51
A114: 642851 | B114: 2018-07-19 | C114: -9211.58 | D114: 5850332.93
A115: 673838 | B115: 2018-07-19 | C115: -3888.18 | D115: 5846444.75
A116: 495627 | B116: 2018-07-20 | C116: -3449.98 | D116: 5842994.77
A117: 384854 | B117: 2018-07-21 | C117: -276947.83 | D117: 5566046.94
A118: 488203 | B118: 2018-07-22 | C118: -678.32 | D118: 5565368.62
A119: 666126 | B119: 2018-07-23 | C119: -26339.13 | D119: 5539029.49
A120: 927852 | B120: 2018-07-23 | C120: 8503003.83 | D120: 14042033.32
A121: 265337 | B121: 2018-07-25 | C121: -11645.45 | D121: 14030387.87
A122: 745430 | B122: 2018-07-26 | C122: -18728.22 | D122: 14011659.65
A123: 586579 | B123: 2018-07-27 | C123: -894174.76 | D123: 13117484.89
A124: 605327 | B124: 2018-07-27 | C124: -36621.51 | D124: 13080863.38
A125: 693102 | B125: 2018-07-27 | C125: -3136.47 | D125: 13077726.91
A126: 522463 | B126: 2018-07-29 | C126: -9659.07 | D126: 13068067.84
A127: 355379 | B127: 2018-07-29 | C127: -118638.99 | D127: 12949428.85
A128: 476575 | B128: 2018-07-30 | C128: -11694.02 | D128: 12937734.83
A129: 264497 | B129: 2018-07-30 | C129: -3930.96 | D129: 12933803.87
A130: 2X | B130: 2018-07-30 | C130: 1091420 | D130: 14025223.87
A131: 430137 | B131: 2018-07-31 | C131: -174354.35 | D131: 13850869.52
A132: 682329 | B132: 2018-07-31 | C132: -184722.84 | D132: 13666146.68
A133: 736272 | B133: 2018-07-31 | C133: -23004.81 | D133: 13643141.87
A134: 841121 | B134: 2018-07-31 | C134: -51778.09 | D134: 13591363.78
A135: 600462 | B135: 2018-08-01 | C135: -3610.96 | D135: 13587752.82
A136: 378759 | B136: 2018-08-01 | C136: -2231.95 | D136: 13585520.87
A137: 764588 | B137: 2018-08-01 | C137: -48327.83 | D137: 13537193.04
A138: 320000 | B138: 2018-08-01 | C138: -39940.36 | D138: 13497252.68
A139: 268251 | B139: 2018-08-01 | C139: -150880.63 | D139: 13346372.05
A140: 709381 | B140: 2018-08-01 | C140: -124694.74 | D140: 13221677.31
A141: 385727 | B141: 2018-08-01 | C141: -2235061.17 | D141: 10986616.14
A142: 789966 | B142: 2018-08-04 | C142: -237383.85 | D142: 10749232.29
A143: 269734 | B143: 2018-08-04 | C143: -32112.74 | D143: 10717119.55
A144: 543629 | B144: 2018-08-07 | C144: -2196522.91 | D144: 8520596.64
A145: 429565 | B145: 2018-08-07 | C145: -550986.31 | D145: 7969610.33
A146: 384522 | B146: 2018-08-07 | C146: -2196522.91 | D146: 5773087.42
A147: 299990 | B147: 2018-08-08 | C147: -151.71 | D147: 5772935.71
A148: 318305 | B148: 2018-08-08 | C148: -1214871.61 | D148: 4558064.1
A149: 767669 | B149: 2018-08-09 | C149: -54789.28 | D149: 4503274.82
A150: 388274 | B150: 2018-08-09 | C150: -1237.07 | D150: 4502037.75
A151: 560436 | B151: 2018-08-10 | C151: -1002.47 | D151: 4501035.28
A152: 526945 | B152: 2018-08-11 | C152: -22809.59 | D152: 4478225.69
A153: 675827 | B153: 2018-08-12 | C153: -251033.69 | D153: 4227192
A154: 566402 | B154: 2018-08-14 | C154: -218584.69 | D154: 4008607.31
A155: 511432 | B155: 2018-08-15 | C155: -2567.02 | D155: 4006040.29
A156: 443970 | B156: 2018-08-15 | C156: -2231.95 | D156: 4003808.34
A157: 821434 | B157: 2018-08-15 | C157: -79572.01 | D157: 3924236.33
A158: 276610 | B158: 2018-08-17 | C158: -15398.41 | D158: 3908837.92
A159: 766483 | B159: 2018-08-17 | C159: -7858.22 | D159: 3900979.7
A160: 842796 | B160: 2018-08-17 | C160: -10101.64 | D160: 3890878.06
A161: 798224 | B161: 2018-08-19 | C161: -267949.07 | D161: 3622928.99
A162: 659356 | B162: 2018-08-19 | C162: -221543.8 | D162: 3401385.19
A163: 619819 | B163: 2018-08-19 | C163: -7815.11 | D163: 3393570.08
A164: 800543 | B164: 2018-08-20 | C164: -22505.08 | D164: 3371065
A165: 792363 | B165: 2018-08-20 | C165: -18598.89 | D165: 3352466.11
A166: 712489 | B166: 2018-08-20 | C166: -131076.81 | D166: 3221389.3
A167: 654840 | B167: 2018-08-20 | C167: -108323.44 | D167: 3113065.86
A168: 583702 | B168: 2018-08-20 | C168: -2321681.18 | D168: 791384.68
A169: 546829 | B169: 2018-08-23 | C169: -3521337.45 | D169: -2729952.77
A170: 816851 | B170: 2018-08-23 | C170: -22047.31 | D170: -2752000.08
A171: 623630 | B171: 2018-08-23 | C171: -23869.36 | D171: -2775869.44
A172: 381869 | B172: 2018-08-23 | C172: -8129.82 | D172: -2783999.26
A173: 253163 | B173: 2018-08-23 | C173: 9288163.74 | D173: 6504164.48
A174: 646363 | B174: 2018-08-24 | C174: -18211.98 | D174: 6485952.5
A175: 342940 | B175: 2018-08-24 | C175: -25489.02 | D175: 6460463.48
A176: 634606 | B176: 2018-08-25 | C176: -165.35 | D176: 6460298.13
A177: 476555 | B177: 2018-08-26 | C177: -737804.29 | D177: 5722493.84
A178: 355597 | B178: 2018-08-26 | C178: -3559.07 | D178: 5718934.77
A179: 282023 | B179: 2018-08-28 | C179: -3789.96 | D179: 5715144.81
A180: 828871 | B180: 2018-08-29 | C180: -2428.41 | D180: 5712716.4
A181: 841676 | B181: 2018-08-29 | C181: -236194.75 | D181: 5476521.65
A182: 257489 | B182: 2018-08-29 | C182: -109335.73 | D182: 5367185.92
A183: 525075 | B183: 2018-08-31 | C183: -3939.48 | D183: 5363246.44
A184: 723967 | B184: 2018-08-31 | C184: -2284.18 | D184: 5360962.26
A185: 708874 | B185: 2018-08-31 | C185: -442896.6 | D185: 4918065.66
A186: 767962 | B186: 2018-08-31 | C186: -235746.72 | D186: 4682318.94
A187: 657533 | B187: 2018-08-31 | C187: -35918.63 | D187: 4646400.31
A188: 677036 | B188: 2018-09-01 | C188: -3833.07 | D188: 4642567.24
A189: 678383 | B189: 2018-09-01 | C189: -2395.12 | D189: 4640172.12
A190: 449658 | B190: 2018-09-01 | C190: -54658.31 | D190: 4585513.81
A191: 273478 | B191: 2018-09-01 | C191: -3033.03 | D191: 4582480.78
A192: 755998 | B192: 2018-09-02 | C192: -30901.37 | D192: 4551579.41
A193: 706384 | B193: 2018-09-02 | C193: -3961.85 | D193: 4547617.56
A194: 551576 | B194: 2018-09-05 | C194: -6407.73 | D194: 4541209.83
A195: 423746 | B195: 2018-09-05 | C195: -19049.64 | D195: 4522160.19
A196: 641170 | B196: 2018-09-05 | C196: -15743.73 | D196: 4506416.46
A197: 507392 | B197: 2018-09-05 | C197: -131071.36 | D197: 4375345.1
A198: 739329 | B198: 2018-09-05 | C198: -108323.44 | D198: 4267021.66
A199: 561874 | B199: 2018-09-05 | C199: -1247.98 | D199: 4265773.68
A200: 557650 | B200: 2018-09-06 | C200: -2669279.45 | D200: 1596494.23
A201: 739957 | B201: 2018-09-07 | C201: -170807.23 | D201: 1425687
A202: 829295 | B202: 2018-09-09 | C202: -927.16 | D202: 1424759.84
A203: 315570 | B203: 2018-09-09 | C203: -3119636.35 | D203: -1694876.51
A204: 592558 | B204: 2018-09-10 | C204: -1002.47 | D204: -1695878.98
A205: 504157 | B205: 2018-09-13 | C205: -2085.16 | D205: -1697964.14
A206: 949889 | B206: 2018-09-16 | C206: 10679083.58 | D206: 8981119.44
... 98 more rows

Sheet porovnání plán&skut (P&V)
B2: skutečnost | E2: plán
B3: zaplaceno dne | C3: částka | E3: Splatné dne | F3: částka | H3: Skutečnost
B4: 2018-03-09 | C4: 818565 | D4: =IF(C4>5000000,C4,"") ->  | E4: 2018-02-15 | F4: -169988.67 | H4: Začátek : | I4: 0 | K4: Délka okna : | L4: 156
B5: 2018-04-05 | C5: -169988.67 | D5: =IF(C5>5000000,C5,"") ->  | E5: 2018-03-04 | F5: -37408.42 | H5: Skutečnost
B6: 2018-04-05 | C6: -37408.42 | E6: 2018-03-09 | F6: 818565 | H6: Začátek | I6: =INDEX($B$4:$B$299,I4+1) -> 2018-03-09
B7: 2018-04-05 | C7: -16137.19 | E7: 2018-03-11 | F7: -16137.19 | H7: Konec | I7: =INDEX($B$4:$B$299,I4+L4) -> 2018-08-21
B8: 2018-04-05 | C8: -759.63 | E8: 2018-03-14 | F8: -759.63 | H8: Skutečnost | I8: =SUM(DataCastkaSkut) -> 2655765.79
B9: 2018-04-05 | C9: -411042.41 | E9: 2018-03-16 | F9: -411042.41
B10: 2018-04-05 | C10: -17524.93 | E10: 2018-03-19 | F10: -17524.93
B11: 2018-04-05 | C11: -10122.37 | E11: 2018-03-21 | F11: -10122.37
B12: 2018-04-05 | C12: -10139.29 | E12: 2018-03-28 | F12: -10139.29
B13: 2018-04-05 | C13: -89960.29 | E13: 2018-03-31 | F13: -89960.29
B14: 2018-04-28 | C14: 3375974.89 | E14: 2018-04-05 | F14: -13724.06
B15: 2018-05-04 | C15: -13724.06 | E15: 2018-04-09 | F15: -5662.29
B16: 2018-05-04 | C16: -5662.29 | E16: 2018-04-12 | F16: -12085.29
B17: 2018-05-04 | C17: -12085.29 | E17: 2018-04-13 | F17: -2819.68
B18: 2018-05-04 | C18: -2819.68 | E18: 2018-04-20 | F18: -13876.86
B19: 2018-05-04 | C19: -13876.86 | E19: 2018-04-21 | F19: -3819.97
B20: 2018-05-04 | C20: -3819.97 | E20: 2018-04-24 | F20: -15948.92
B21: 2018-05-04 | C21: -15948.92 | E21: 2018-04-24 | F21: -30450.62
B22: 2018-05-04 | C22: -30450.62 | E22: 2018-04-27 | F22: -13245.47
B23: 2018-05-04 | C23: -13245.47 | E23: 2018-04-27 | F23: -285106.19
B24: 2018-05-04 | C24: -1396.47 | E24: 2018-04-28 | F24: 3375974.89
B25: 2018-05-04 | C25: -1686.24 | E25: 2018-05-03 | F25: -1396.47
B26: 2018-05-04 | C26: -2641.24 | E26: 2018-05-03 | F26: -1686.24
B27: 2018-05-04 | C27: -14843.31 | E27: 2018-05-04 | F27: -2641.24
B28: 2018-05-04 | C28: -42696.35 | E28: 2018-05-04 | F28: -14843.31 | H28: Plán
B29: 2018-05-04 | C29: -6204.61 | E29: 2018-05-04 | F29: -42696.35 | H29: Začátek : | I29: 0 | K29: Délka okna : | L29: 50
B30: 2018-05-04 | C30: -759.63 | E30: 2018-05-04 | F30: -6204.61 | H30: Plán
B31: 2018-05-04 | C31: -26049.47 | E31: 2018-05-04 | F31: -759.63 | H31: Začátek | I31: =INDEX($E$4:$E$299,I29+1) -> 2018-02-15
B32: 2018-05-04 | C32: -23473.72 | E32: 2018-05-05 | F32: -26049.47 | H32: Konec | I32: =INDEX($E$4:$E$299,I29+L29) -> 2018-06-03
B33: 2018-05-04 | C33: -11482.83 | E33: 2018-05-05 | F33: -23473.72 | H33: Plán | I33: =SUM(DataCastkaPlan) -> 9073729.73
B34: 2018-05-04 | C34: -4889.02 | E34: 2018-05-06 | F34: -11482.83
B35: 2018-05-04 | C35: -759.63 | E35: 2018-05-07 | F35: -4889.02
B36: 2018-05-04 | C36: -759.63 | E36: 2018-05-10 | F36: -759.63
B37: 2018-05-14 | C37: -5615.36 | E37: 2018-05-11 | F37: -759.63
B38: 2018-05-14 | C38: -6830.11 | E38: 2018-05-14 | F38: -5615.36
B39: 2018-05-21 | C39: -285106.19 | E39: 2018-05-14 | F39: -6830.11
B40: 2018-05-21 | C40: -3136.47 | E40: 2018-05-15 | F40: -3136.47
B41: 2018-05-21 | C41: -3218.05 | E41: 2018-05-15 | F41: -3218.05
B42: 2018-05-21 | C42: -689462.4 | E42: 2018-05-15 | F42: -689462.4
B43: 2018-05-21 | C43: -14288.87 | E43: 2018-05-17 | F43: -14288.87
B44: 2018-05-21 | C44: -3264.44 | E44: 2018-05-17 | F44: -3264.44
B45: 2018-05-21 | C45: -991.56 | E45: 2018-05-18 | F45: -991.56
B46: 2018-05-21 | C46: -10.91 | E46: 2018-05-18 | F46: -10.91
B47: 2018-05-21 | C47: 6939398.98 | D47: 6939398.98 | E47: 2018-05-21 | F47: 6939398.98
B48: 2018-06-01 | C48: -321.97 | E48: 2018-05-26 | F48: -1500.7
B49: 2018-06-01 | C49: -16459.71 | E49: 2018-05-30 | F49: -321.97
B50: 2018-06-01 | C50: -1686.24 | E50: 2018-05-30 | F50: -16459.71
B51: 2018-06-01 | C51: -1114.34 | E51: 2018-06-01 | F51: -1686.24
B52: 2018-06-01 | C52: -14843.31 | E52: 2018-06-02 | F52: -1114.34
B53: 2018-06-01 | C53: -65439.91 | E53: 2018-06-03 | F53: -14843.31
B54: 2018-06-08 | C54: -4314.38 | E54: 2018-06-03 | F54: -65439.91
B55: 2018-06-08 | C55: -28987.57 | E55: 2018-06-05 | F55: -4314.38
B56: 2018-06-08 | C56: -9029.86 | E56: 2018-06-06 | F56: -28987.57
B57: 2018-06-08 | C57: -272047.35 | E57: 2018-06-08 | F57: -9029.86
B58: 2018-06-08 | C58: -224832.52 | E58: 2018-06-10 | F58: -272047.35
B59: 2018-06-08 | C59: -50833.84 | E59: 2018-06-10 | F59: -224832.52
B60: 2018-06-08 | C60: -42011.44 | E60: 2018-06-10 | F60: -50833.84
B61: 2018-06-08 | C61: -173898.68 | E61: 2018-06-10 | F61: -42011.44
B62: 2018-06-08 | C62: -173898.68 | E62: 2018-06-10 | F62: -173898.68
B63: 2018-06-15 | C63: -1500.7 | E63: 2018-06-10 | F63: -173898.68
B64: 2018-06-15 | C64: -32091.02 | E64: 2018-06-11 | F64: -32091.02
B65: 2018-06-15 | C65: -169988.67 | E65: 2018-06-12 | F65: -169988.67
B66: 2018-06-15 | C66: -4410.43 | E66: 2018-06-13 | F66: -4410.43
B67: 2018-06-15 | C67: -9141.73 | E67: 2018-06-13 | F67: -9141.73
B68: 2018-06-15 | C68: -49070.24 | E68: 2018-06-14 | F68: -49070.24
B69: 2018-06-15 | C69: -1875595.99 | D69: =IF(C69>5000000,C69,"") ->  | E69: 2018-06-14 | F69: -1875595.99
B70: 2018-06-15 | C70: -6292.58 | E70: 2018-06-15 | F70: -6292.58
B71: 2018-06-15 | C71: -385365.12 | E71: 2018-06-16 | F71: -1002.47
B72: 2018-06-15 | C72: -7318.52 | E72: 2018-06-17 | F72: -385365.12
B73: 2018-06-15 | C73: -8468.46 | E73: 2018-06-18 | F73: -7318.52
B74: 2018-06-15 | C74: -25025.71 | E74: 2018-06-19 | F74: -8468.46
B75: 2018-06-15 | C75: -13486.81 | E75: 2018-06-19 | F75: -25025.71
B76: 2018-06-22 | C76: -1002.47 | E76: 2018-06-20 | F76: -13486.81
B77: 2018-06-22 | C77: -8716.08 | E77: 2018-06-23 | F77: -8716.08
B78: 2018-06-22 | C78: -42705.63 | E78: 2018-06-23 | F78: -42705.63
B79: 2018-06-22 | C79: -1189.89 | E79: 2018-06-23 | F79: -1189.89
B80: 2018-06-22 | C80: -1017.73 | E80: 2018-06-23 | F80: -1017.73
B81: 2018-06-22 | C81: -3071.26 | E81: 2018-06-24 | F81: -3071.26
B82: 2018-06-22 | C82: -16882.08 | E82: 2018-06-24 | F82: -16882.08
B83: 2018-06-22 | C83: -18554.14 | E83: 2018-06-24 | F83: 5628707.79
B84: 2018-06-22 | C84: -3248.07 | E84: 2018-06-25 | F84: -18554.14
B85: 2018-06-22 | C85: -1577.1 | E85: 2018-06-25 | F85: -3248.07
B86: 2018-06-22 | C86: -27048.6 | E86: 2018-06-25 | F86: -1577.1
B87: 2018-06-22 | C87: -7507.13 | E87: 2018-06-25 | F87: -27048.6
B88: 2018-06-22 | C88: -218584.69 | E88: 2018-06-25 | F88: -7507.13
B89: 2018-06-24 | C89: 5628707.79 | D89: 5628707.79 | E89: 2018-06-28 | F89: -14853.68
B90: 2018-06-29 | C90: -14853.68 | E90: 2018-06-29 | F90: -1729.9
B91: 2018-06-29 | C91: -1729.9 | E91: 2018-06-29 | F91: -19295.66
B92: 2018-06-29 | C92: -19295.66 | E92: 2018-06-30 | F92: -183713.82
B93: 2018-06-29 | C93: -183713.82 | E93: 2018-07-01 | F93: -1686.24
B94: 2018-06-29 | C94: -1686.24 | E94: 2018-07-01 | F94: -53381.35
B95: 2018-06-29 | C95: -53381.35 | E95: 2018-07-01 | F95: -19952.79
B96: 2018-06-29 | C96: -19952.79 | E96: 2018-07-04 | F96: -959.9
B97: 2018-07-13 | C97: -959.9 | E97: 2018-07-07 | F97: -297.41
B98: 2018-07-13 | C98: -297.41 | E98: 2018-07-08 | F98: -9277.07
B99: 2018-07-13 | C99: -9277.07 | E99: 2018-07-09 | F99: -31377.78
B100: 2018-07-13 | C100: -31377.78 | E100: 2018-07-10 | F100: -3484.9 | K100: 0
B101: 2018-07-13 | C101: -3484.9 | E101: 2018-07-11 | F101: -3893.1 | K101: 0
B102: 2018-07-13 | C102: -2007.67 | E102: 2018-07-12 | F102: -2007.67
B103: 2018-07-13 | C103: -3894526.86 | E103: 2018-07-13 | F103: -3894526.86
B104: 2018-07-13 | C104: -815652.71 | E104: 2018-07-13 | F104: -1002.47
B105: 2018-07-13 | C105: -12063.85 | E105: 2018-07-14 | F105: -815652.71
B106: 2018-07-20 | C106: -1320.62 | E106: 2018-07-15 | F106: -12063.85
B107: 2018-07-20 | C107: -9211.58 | E107: 2018-07-16 | F107: -1320.62
B108: 2018-07-20 | C108: -3888.18 | E108: 2018-07-16 | F108: -8345.54
B109: 2018-07-20 | C109: -3449.98 | E109: 2018-07-19 | F109: -9211.58
B110: 2018-07-20 | C110: -276947.83 | E110: 2018-07-19 | F110: -3888.18
B111: 2018-07-20 | C111: -678.32 | E111: 2018-07-20 | F111: -3449.98
B112: 2018-07-23 | C112: 8503003.83 | D112: 8503003.83 | E112: 2018-07-21 | F112: -276947.83
B113: 2018-07-30 | C113: 1091420 | E113: 2018-07-22 | F113: -678.32
B114: 2018-07-31 | C114: -3893.1 | E114: 2018-07-23 | F114: -26339.13
B115: 2018-07-31 | C115: -1002.47 | E115: 2018-07-23 | F115: 8503003.83
B116: 2018-07-31 | C116: -8345.54 | E116: 2018-07-25 | F116: -11645.45
B117: 2018-07-31 | C117: -26339.13 | E117: 2018-07-26 | F117: -18728.22
B118: 2018-07-31 | C118: -11645.45 | E118: 2018-07-27 | F118: -894174.76
B119: 2018-07-31 | C119: -18728.22 | E119: 2018-07-27 | F119: -36621.51
B120: 2018-07-31 | C120: -894174.76 | E120: 2018-07-27 | F120: -3136.47
B121: 2018-07-31 | C121: -36621.51 | E121: 2018-07-29 | F121: -9659.07
B122: 2018-07-31 | C122: -3136.47 | E122: 2018-07-29 | F122: -118638.99
B123: 2018-07-31 | C123: -9659.07 | E123: 2018-07-30 | F123: -11694.02
B124: 2018-07-31 | C124: -118638.99 | E124: 2018-07-30 | F124: -3930.96
B125: 2018-07-31 | C125: -11694.02 | E125: 2018-07-30 | F125: 1091420
B126: 2018-07-31 | C126: -174354.35 | E126: 2018-07-31 | F126: -174354.35
B127: 2018-07-31 | C127: -184722.84 | E127: 2018-07-31 | F127: -184722.84
B128: 2018-07-31 | C128: -23004.81 | E128: 2018-07-31 | F128: -23004.81
B129: 2018-07-31 | C129: -51778.09 | E129: 2018-07-31 | F129: -51778.09
B130: 2018-07-31 | C130: -3610.96 | E130: 2018-08-01 | F130: -3610.96
B131: 2018-07-31 | C131: -2231.95 | E131: 2018-08-01 | F131: -2231.95
B132: 2018-07-31 | C132: -48327.83 | E132: 2018-08-01 | F132: -48327.83
B133: 2018-07-31 | C133: -39940.36 | D133: =IF(C133>5000000,C133,"") ->  | E133: 2018-08-01 | F133: -39940.36
B134: 2018-07-31 | C134: -150880.63 | E134: 2018-08-01 | F134: -150880.63
B135: 2018-07-31 | C135: -124694.74 | E135: 2018-08-01 | F135: -124694.74
B136: 2018-07-31 | C136: -2235061.17 | E136: 2018-08-01 | F136: -2235061.17
B137: 2018-07-31 | C137: -737804.29 | E137: 2018-08-04 | F137: -237383.85
B138: 2018-08-07 | C138: -237383.85 | E138: 2018-08-04 | F138: -32112.74
B139: 2018-08-07 | C139: -32112.74 | E139: 2018-08-07 | F139: -2196522.91
B140: 2018-08-07 | C140: -2196522.91 | E140: 2018-08-07 | F140: -550986.31
B141: 2018-08-07 | C141: -550986.31 | E141: 2018-08-07 | F141: -2196522.91
B142: 2018-08-07 | C142: -151.71 | E142: 2018-08-08 | F142: -151.71
B143: 2018-08-07 | C143: -1214871.61 | E143: 2018-08-08 | F143: -1214871.61
B144: 2018-08-07 | C144: -54789.28 | E144: 2018-08-09 | F144: -54789.28
B145: 2018-08-07 | C145: -1237.07 | E145: 2018-08-09 | F145: -1237.07
B146: 2018-08-14 | C146: -3930.96 | E146: 2018-08-10 | F146: -1002.47
B147: 2018-08-14 | C147: -2196522.91 | E147: 2018-08-11 | F147: -22809.59
B148: 2018-08-14 | C148: -1002.47 | E148: 2018-08-12 | F148: -251033.69
B149: 2018-08-14 | C149: -22809.59 | E149: 2018-08-14 | F149: -218584.69
B150: 2018-08-14 | C150: -251033.69 | E150: 2018-08-15 | F150: -2567.02
B151: 2018-08-14 | C151: -2567.02 | E151: 2018-08-15 | F151: -2231.95
B152: 2018-08-14 | C152: -2231.95 | E152: 2018-08-15 | F152: -79572.01
B153: 2018-08-14 | C153: -79572.01 | E153: 2018-08-17 | F153: -15398.41
B154: 2018-08-21 | C154: -267949.07 | E154: 2018-08-17 | F154: -7858.22
B155: 2018-08-21 | C155: -221543.8 | E155: 2018-08-17 | F155: -10101.64
B156: 2018-08-21 | C156: -15398.41 | E156: 2018-08-19 | F156: -267949.07
B157: 2018-08-21 | C157: -7858.22 | E157: 2018-08-19 | F157: -221543.8
B158: 2018-08-21 | C158: -10101.64 | E158: 2018-08-19 | F158: -7815.11
B159: 2018-08-21 | C159: -7815.11 | E159: 2018-08-20 | F159: -22505.08
B160: 2018-08-21 | C160: -22505.08 | E160: 2018-08-20 | F160: -18598.89
B161: 2018-08-21 | C161: -18598.89 | E161: 2018-08-20 | F161: -131076.81
B162: 2018-08-21 | C162: -131076.81 | E162: 2018-08-20 | F162: -108323.44
B163: 2018-08-21 | C163: -108323.44 | E163: 2018-08-20 | F163: -2321681.18
B164: 2018-08-21 | C164: -2321681.18 | E164: 2018-08-23 | F164: -3521337.45
B165: 2018-08-23 | C165: 9288163.74 | D165: 9288163.74 | E165: 2018-08-23 | F165: -22047.31
B166: 2018-08-28 | C166: -3521337.45 | E166: 2018-08-23 | F166: -23869.36
B167: 2018-08-28 | C167: -22047.31 | E167: 2018-08-23 | F167: -8129.82
B168: 2018-08-28 | C168: -23869.36 | E168: 2018-08-23 | F168: 9288163.74
B169: 2018-08-28 | C169: -18211.98 | E169: 2018-08-24 | F169: -18211.98
B170: 2018-08-28 | C170: -25489.02 | E170: 2018-08-24 | F170: -25489.02
B171: 2018-08-28 | C171: -165.35 | E171: 2018-08-25 | F171: -165.35
B172: 2018-08-28 | C172: -3789.96 | E172: 2018-08-26 | F172: -737804.29
B173: 2018-08-28 | C173: -2428.41 | E173: 2018-08-26 | F173: -3559.07
B174: 2018-08-28 | C174: -236194.75 | E174: 2018-08-28 | F174: -3789.96
B175: 2018-08-28 | C175: -109335.73 | E175: 2018-08-29 | F175: -2428.41
B176: 2018-09-04 | C176: -3559.07 | E176: 2018-08-29 | F176: -236194.75
B177: 2018-09-04 | C177: -3939.48 | E177: 2018-08-29 | F177: -109335.73
B178: 2018-09-04 | C178: -2284.18 | E178: 2018-08-31 | F178: -3939.48
B179: 2018-09-04 | C179: -442896.6 | E179: 2018-08-31 | F179: -2284.18
B180: 2018-09-04 | C180: -235746.72 | E180: 2018-08-31 | F180: -442896.6
B181: 2018-09-04 | C181: -35918.63 | E181: 2018-08-31 | F181: -235746.72
B182: 2018-09-04 | C182: -3833.07 | E182: 2018-08-31 | F182: -35918.63
B183: 2018-09-04 | C183: -2395.12 | E183: 2018-09-01 | F183: -3833.07
B184: 2018-09-04 | C184: -54658.31 | E184: 2018-09-01 | F184: -2395.12
B185: 2018-09-04 | C185: -3033.03 | E185: 2018-09-01 | F185: -54658.31
B186: 2018-09-04 | C186: -30901.37 | E186: 2018-09-01 | F186: -3033.03
B187: 2018-09-04 | C187: -3961.85 | E187: 2018-09-02 | F187: -30901.37
B188: 2018-09-04 | C188: -6407.73 | E188: 2018-09-02 | F188: -3961.85
B189: 2018-09-04 | C189: -19049.64 | E189: 2018-09-05 | F189: -6407.73
B190: 2018-09-04 | C190: -15743.73 | E190: 2018-09-05 | F190: -19049.64
B191: 2018-09-04 | C191: -131071.36 | E191: 2018-09-05 | F191: -15743.73
B192: 2018-09-04 | C192: -108323.44 | E192: 2018-09-05 | F192: -131071.36
B193: 2018-09-04 | C193: -2669279.45 | E193: 2018-09-05 | F193: -108323.44
B194: 2018-09-04 | C194: -260994.99 | E194: 2018-09-05 | F194: -1247.98
B195: 2018-09-04 | C195: -449665.04 | E195: 2018-09-06 | F195: -2669279.45
B196: 2018-09-04 | C196: -85387.79 | E196: 2018-09-07 | F196: -170807.23
B197: 2018-09-11 | C197: -1247.98 | D197: =IF(C197>5000000,C197,"") ->  | E197: 2018-09-09 | F197: -927.16
B198: 2018-09-11 | C198: -170807.23 | E198: 2018-09-09 | F198: -3119636.35
B199: 2018-09-11 | C199: -927.16 | E199: 2018-09-10 | F199: -1002.47
B200: 2018-09-11 | C200: -1002.47 | E200: 2018-09-13 | F200: -2085.16
B201: 2018-09-11 | C201: -2085.16 | E201: 2018-09-16 | F201: 10679083.58
... 98 more rows

Sheet SynchronP&V
B1: Příjmy a výdaje | V1: Kumulace příjmy a výdaje
B2: Datum | C2: Skut zaplaceno | D2: Plán splatnosti | I2: 0 | V2: Skut zaplaceno | W2: Plán splatnosti
B3: 2018-01-30 | C3: 818565 | D3: 818565 | I3: 0 | V3: =C3 -> 818565 | W3: =D3 -> 818565
B4: =B3+1 -> 2018-01-31 | I4: 0 | V4: =V3+C4 -> 818565 | W4: =W3+D4 -> 818565
B5: =B4+1 -> 2018-02-01 | I5: 0 | V5: 818565 | W5: 818565
B6: 2018-02-02 | H6: Začátek : | I6: 155 | K6: Délka okna : | L6: 143 | V6: 818565 | W6: 818565
B7: 2018-02-03 | V7: 818565 | W7: 818565
B8: 2018-02-04 | H8: Začátek | I8: =INDEX($B$4:$B$299,I6+1) -> 2018-07-05 | V8: 818565 | W8: 818565
B9: 2018-02-05 | H9: Konec | I9: =INDEX($B$4:$B$338,I6+L6) -> 2018-11-24 | V9: 818565 | W9: 818565
B10: 2018-02-06 | H10: Skutečnost | I10: =SUM(DataCastkaSkutSynchr) -> -9913485.09 | J10: v uvažovaném období | V10: 818565 | W10: 818565
B11: 2018-02-07 | H11: Plán | I11: =SUM(DataCastkaPlanSynchr) -> -3231030.49 | V11: 818565 | W11: 818565
B12: 2018-02-08 | V12: 818565 | W12: 818565
B13: 2018-02-09 | H13: Zobrazení jednotlivých částek plánovaných a skutečných příjmů a výdajů | V13: 818565 | W13: 818565
B14: 2018-02-10 | V14: 818565 | W14: 818565
B15: 2018-02-11 | V15: 818565 | W15: 818565
B16: 2018-02-12 | V16: 818565 | W16: 818565
B17: 2018-02-13 | V17: 818565 | W17: 818565
B18: 2018-02-14 | V18: 818565 | W18: 818565
B19: 2018-02-15 | D19: -169988.67 | V19: 818565 | W19: 648576.33
B20: 2018-02-16 | V20: 818565 | W20: 648576.33
B21: 2018-02-17 | V21: 818565 | W21: 648576.33
B22: 2018-02-18 | V22: 818565 | W22: 648576.33
B23: 2018-02-19 | V23: 818565 | W23: 648576.33
B24: 2018-02-20 | V24: 818565 | W24: 648576.33
B25: 2018-02-21 | V25: 818565 | W25: 648576.33
B26: 2018-02-22 | V26: 818565 | W26: 648576.33
B27: 2018-02-23 | J27: 0 | M27: 1 | V27: 818565 | W27: 648576.33
B28: 2018-02-24 | V28: 818565 | W28: 648576.33
B29: 2018-02-25 | V29: 818565 | W29: 648576.33
B30: 2018-02-26 | V30: 818565 | W30: 648576.33
B31: 2018-02-27 | V31: 818565 | W31: 648576.33
B32: 2018-02-28 | V32: 818565 | W32: 648576.33
B33: 2018-03-01 | V33: 818565 | W33: 648576.33
B34: 2018-03-02 | F34: =SUM(DataCastkaPlanSynchr) -> -3231030.49 | V34: 818565 | W34: 648576.33
B35: 2018-03-03 | V35: 818565 | W35: 648576.33
B36: 2018-03-04 | D36: -37408.42 | V36: 818565 | W36: 611167.91
B37: 2018-03-05 | V37: 818565 | W37: 611167.91
B38: 2018-03-06 | V38: 818565 | W38: 611167.91
B39: 2018-03-07 | V39: 818565 | W39: 611167.91
B40: 2018-03-08 | H40: Kumulace plánovaných a skutečných příjmů a výdajů | V40: 818565 | W40: 611167.91
B41: 2018-03-09 | V41: 818565 | W41: 611167.91
B42: 2018-03-10 | V42: 818565 | W42: 611167.91
B43: 2018-03-11 | D43: -16137.19 | V43: 818565 | W43: 595030.72
B44: 2018-03-12 | V44: 818565 | W44: 595030.72
B45: 2018-03-13 | V45: 818565 | W45: 595030.72
B46: 2018-03-14 | D46: -759.63 | V46: 818565 | W46: 594271.09
B47: 2018-03-15 | V47: 818565 | W47: 594271.09
B48: 2018-03-16 | D48: -411042.41 | V48: 818565 | W48: 183228.68
B49: 2018-03-17 | V49: 818565 | W49: 183228.68
B50: 2018-03-18 | V50: 818565 | W50: 183228.68
B51: 2018-03-19 | D51: -17524.93 | V51: 818565 | W51: 165703.75
B52: 2018-03-20 | V52: 818565 | W52: 165703.75
B53: 2018-03-21 | D53: -10122.37 | V53: 818565 | W53: 155581.38
B54: 2018-03-22 | V54: 818565 | W54: 155581.38
B55: 2018-03-23 | V55: 818565 | W55: 155581.38
B56: 2018-03-24 | V56: 818565 | W56: 155581.38
B57: 2018-03-25 | V57: 818565 | W57: 155581.38
B58: 2018-03-26 | V58: 818565 | W58: 155581.38
B59: 2018-03-27 | V59: 818565 | W59: 155581.38
B60: 2018-03-28 | D60: -10139.29 | V60: 818565 | W60: 145442.09
B61: 2018-03-29 | V61: 818565 | W61: 145442.09
B62: 2018-03-30 | V62: 818565 | W62: 145442.09
B63: 2018-03-31 | D63: -89960.29 | V63: 818565 | W63: 55481.8
B64: 2018-04-01 | V64: 818565 | W64: 55481.8
B65: 2018-04-02 | V65: 818565 | W65: 55481.8
B66: 2018-04-03 | V66: 818565 | W66: 55481.8
B67: 2018-04-04 | V67: 818565 | W67: 55481.8
B68: 2018-04-05 | C68: -763083.2 | D68: -13724.06 | V68: =V67+C68 -> 55481.8 | W68: =W67+D68 -> 41757.74
B69: =B68+1 -> 2018-04-06 | V69: 55481.8 | W69: 41757.74
B70: 2018-04-07 | V70: 55481.8 | W70: 41757.74
B71: 2018-04-08 | V71: 55481.8 | W71: 41757.74
B72: 2018-04-09 | D72: -5662.29 | V72: 55481.8 | W72: 36095.45
B73: 2018-04-10 | V73: 55481.8 | W73: 36095.45
B74: 2018-04-11 | V74: 55481.8 | W74: 36095.45
B75: 2018-04-12 | D75: -12085.29 | V75: 55481.8 | W75: 24010.16
B76: 2018-04-13 | D76: -2819.68 | V76: 55481.8 | W76: 21190.48
B77: 2018-04-14 | V77: 55481.8 | W77: 21190.48
B78: 2018-04-15 | V78: 55481.8 | W78: 21190.48
B79: 2018-04-16 | V79: 55481.8 | W79: 21190.48
B80: 2018-04-17 | V80: 55481.8 | W80: 21190.48
B81: 2018-04-18 | V81: 55481.8 | W81: 21190.48
B82: 2018-04-19 | V82: 55481.8 | W82: 21190.48
B83: 2018-04-20 | D83: -13876.86 | V83: 55481.8 | W83: 7313.62
B84: 2018-04-21 | D84: -3819.97 | V84: 55481.8 | W84: 3493.65
B85: 2018-04-22 | V85: 55481.8 | W85: 3493.65
B86: 2018-04-23 | V86: 55481.8 | W86: 3493.65
B87: 2018-04-24 | D87: -46399.54 | V87: 55481.8 | W87: -42905.89
B88: 2018-04-25 | V88: 55481.8 | W88: -42905.89
B89: 2018-04-26 | V89: 55481.8 | W89: -42905.89
B90: 2018-04-27 | D90: -298351.66 | V90: 55481.8 | W90: -341257.55
B91: 2018-04-28 | C91: 3375974.89 | D91: 3375974.89 | V91: 3431456.69 | W91: 3034717.34
B92: 2018-04-29 | V92: 3431456.69 | W92: 3034717.34
B93: 2018-04-30 | V93: 3431456.69 | W93: 3034717.34
B94: 2018-05-01 | V94: 3431456.69 | W94: 3034717.34
B95: 2018-05-02 | V95: 3431456.69 | W95: 3034717.34
B96: 2018-05-03 | D96: -3082.71 | V96: 3431456.69 | W96: 3031634.63
B97: 2018-05-04 | C97: -249275.31 | D97: -67145.14 | V97: 3182181.38 | W97: 2964489.49
B98: 2018-05-05 | D98: -49523.19 | V98: 3182181.38 | W98: 2914966.3
B99: 2018-05-06 | D99: -11482.83 | V99: 3182181.38 | W99: 2903483.47
B100: 2018-05-07 | D100: -4889.02 | V100: 3182181.38 | W100: 2898594.45
B101: 2018-05-08 | V101: 3182181.38 | W101: 2898594.45
B102: 2018-05-09 | V102: 3182181.38 | W102: 2898594.45
B103: 2018-05-10 | D103: -759.63 | V103: 3182181.38 | W103: 2897834.82
B104: 2018-05-11 | D104: -759.63 | V104: 3182181.38 | W104: 2897075.19
B105: 2018-05-12 | V105: 3182181.38 | W105: 2897075.19
B106: 2018-05-13 | V106: 3182181.38 | W106: 2897075.19
B107: 2018-05-14 | C107: -12445.47 | D107: -12445.47 | V107: 3169735.91 | W107: 2884629.72
B108: 2018-05-15 | D108: -695816.92 | V108: 3169735.91 | W108: 2188812.8
B109: 2018-05-16 | V109: 3169735.91 | W109: 2188812.8
B110: 2018-05-17 | D110: -17553.31 | V110: 3169735.91 | W110: 2171259.49
B111: 2018-05-18 | D111: -1002.47 | V111: 3169735.91 | W111: 2170257.02
B112: 2018-05-19 | V112: 3169735.91 | W112: 2170257.02
B113: 2018-05-20 | V113: 3169735.91 | W113: 2170257.02
B114: 2018-05-21 | C114: 5939920.09 | D114: 6939398.98 | V114: 9109656 | W114: 9109656
B115: 2018-05-22 | V115: 9109656 | W115: 9109656
B116: 2018-05-23 | V116: 9109656 | W116: 9109656
B117: 2018-05-24 | V117: 9109656 | W117: 9109656
B118: 2018-05-25 | V118: 9109656 | W118: 9109656
B119: 2018-05-26 | D119: -1500.7 | V119: 9109656 | W119: 9108155.3
B120: 2018-05-27 | V120: 9109656 | W120: 9108155.3
B121: 2018-05-28 | V121: 9109656 | W121: 9108155.3
B122: 2018-05-29 | V122: 9109656 | W122: 9108155.3
B123: 2018-05-30 | C123: 1091420 | D123: 1074638.32 | V123: 10201076 | W123: 10182793.62
B124: 2018-05-31 | V124: 10201076 | W124: 10182793.62
B125: 2018-06-01 | C125: -99865.48 | D125: -1686.24 | V125: 10101210.52 | W125: 10181107.38
B126: 2018-06-02 | D126: -1114.34 | V126: 10101210.52 | W126: 10179993.04
B127: 2018-06-03 | D127: -80283.22 | V127: 10101210.52 | W127: 10099709.82
B128: 2018-06-04 | V128: 10101210.52 | W128: 10099709.82
B129: 2018-06-05 | D129: -4314.38 | V129: 10101210.52 | W129: 10095395.44
B130: 2018-06-06 | D130: -28987.57 | V130: 10101210.52 | W130: 10066407.87
B131: 2018-06-07 | V131: 10101210.52 | W131: 10066407.87
B132: 2018-06-08 | C132: -979854.32 | D132: -9029.86 | V132: =V131+C132 -> 9121356.2 | W132: =W131+D132 -> 10057378.01
B133: =B132+1 -> 2018-06-09 | V133: 9121356.2 | W133: 10057378.01
B134: 2018-06-10 | D134: -937522.51 | V134: 9121356.2 | W134: 9119855.5
B135: 2018-06-11 | D135: -32091.02 | V135: 9121356.2 | W135: 9087764.48
B136: 2018-06-12 | D136: -169988.67 | V136: 9121356.2 | W136: 8917775.81
B137: 2018-06-13 | D137: -13552.16 | V137: 9121356.2 | W137: 8904223.65
B138: 2018-06-14 | D138: -1924666.23 | V138: 9121356.2 | W138: 6979557.42
B139: 2018-06-15 | C139: -2587755.98 | D139: -6292.58 | V139: 6533600.22 | W139: 6973264.84
B140: 2018-06-16 | D140: -1002.47 | V140: 6533600.22 | W140: 6972262.37
B141: 2018-06-17 | D141: -385365.12 | V141: 6533600.22 | W141: 6586897.25
B142: 2018-06-18 | D142: -7318.52 | V142: 6533600.22 | W142: 6579578.73
B143: 2018-06-19 | D143: -33494.17 | V143: 6533600.22 | W143: 6546084.56
B144: 2018-06-20 | D144: -13486.81 | V144: 6533600.22 | W144: 6532597.75
B145: 2018-06-21 | V145: 6533600.22 | W145: 6532597.75
B146: 2018-06-22 | C146: -351104.87 | V146: 6182495.35 | W146: 6532597.75
B147: 2018-06-23 | D147: -53629.33 | V147: 6182495.35 | W147: 6478968.42
B148: 2018-06-24 | C148: 5628707.79 | D148: 5608754.45 | V148: 11811203.14 | W148: 12087722.87
B149: 2018-06-25 | D149: -57935.04 | V149: 11811203.14 | W149: 12029787.83
B150: 2018-06-26 | V150: 11811203.14 | W150: 12029787.83
B151: 2018-06-27 | V151: 11811203.14 | W151: 12029787.83
B152: 2018-06-28 | D152: -14853.68 | V152: 11811203.14 | W152: 12014934.15
B153: 2018-06-29 | C153: -294613.44 | D153: -21025.56 | V153: 11516589.7 | W153: 11993908.59
B154: 2018-06-30 | D154: -183713.82 | V154: 11516589.7 | W154: 11810194.77
B155: 2018-07-01 | D155: -75020.38 | V155: 11516589.7 | W155: 11735174.39
B156: 2018-07-02 | V156: 11516589.7 | W156: 11735174.39
B157: 2018-07-03 | V157: 11516589.7 | W157: 11735174.39
B158: 2018-07-04 | D158: -959.9 | V158: 11516589.7 | W158: 11734214.49
B159: 2018-07-05 | V159: 11516589.7 | W159: 11734214.49
B160: 2018-07-06 | V160: 11516589.7 | W160: 11734214.49
B161: 2018-07-07 | D161: -297.41 | V161: 11516589.7 | W161: 11733917.08
B162: 2018-07-08 | D162: -9277.07 | V162: 11516589.7 | W162: 11724640.01
B163: 2018-07-09 | D163: -31377.78 | V163: 11516589.7 | W163: 11693262.23
B164: 2018-07-10 | D164: -3484.9 | V164: 11516589.7 | W164: 11689777.33
B165: 2018-07-11 | D165: -3893.1 | V165: 11516589.7 | W165: 11685884.23
B166: 2018-07-12 | D166: -2007.67 | V166: 11516589.7 | W166: 11683876.56
B167: 2018-07-13 | C167: -4769648.15 | D167: -3895529.33 | V167: 6746941.55 | W167: 7788347.23
B168: 2018-07-14 | D168: -815652.71 | V168: 6746941.55 | W168: 6972694.52
B169: 2018-07-15 | D169: -12063.85 | V169: 6746941.55 | W169: 6960630.67
B170: 2018-07-16 | D170: -9666.16 | V170: 6746941.55 | W170: 6950964.51
B171: 2018-07-17 | V171: 6746941.55 | W171: 6950964.51
B172: 2018-07-18 | V172: 6746941.55 | W172: 6950964.51
B173: 2018-07-19 | D173: -13099.76 | V173: 6746941.55 | W173: 6937864.75
B174: 2018-07-20 | C174: -295496.51 | D174: -3449.98 | V174: 6451445.04 | W174: 6934414.77
B175: 2018-07-21 | D175: -276947.83 | V175: 6451445.04 | W175: 6657466.94
B176: 2018-07-22 | D176: -678.32 | V176: 6451445.04 | W176: 6656788.62
B177: 2018-07-23 | C177: 8503003.83 | D177: 8476664.7 | V177: 14954448.87 | W177: 15133453.32
B178: 2018-07-24 | V178: 14954448.87 | W178: 15133453.32
B179: 2018-07-25 | D179: -11645.45 | V179: 14954448.87 | W179: 15121807.87
B180: 2018-07-26 | D180: -18728.22 | V180: 14954448.87 | W180: 15103079.65
B181: 2018-07-27 | D181: -933932.74 | V181: 14954448.87 | W181: 14169146.91
B182: 2018-07-28 | V182: 14954448.87 | W182: 14169146.91
B183: 2018-07-29 | D183: -128298.06 | V183: 14954448.87 | W183: 14040848.85
B184: 2018-07-30 | D184: -15624.98 | V184: 14954448.87 | W184: 14025223.87
B185: 2018-07-31 | C185: -4920290.75 | D185: -433860.09 | V185: 10034158.12 | W185: 13591363.78
B186: 2018-08-01 | D186: -2604747.64 | V186: 10034158.12 | W186: 10986616.14
B187: 2018-08-02 | V187: 10034158.12 | W187: 10986616.14
B188: 2018-08-03 | V188: 10034158.12 | W188: 10986616.14
B189: 2018-08-04 | D189: -269496.59 | V189: 10034158.12 | W189: 10717119.55
B190: 2018-08-05 | V190: 10034158.12 | W190: 10717119.55
B191: 2018-08-06 | V191: 10034158.12 | W191: 10717119.55
B192: 2018-08-07 | C192: -4288055.48 | D192: -4944032.13 | V192: 5746102.64 | W192: 5773087.42
B193: 2018-08-08 | D193: -1215023.32 | V193: 5746102.64 | W193: 4558064.1
B194: 2018-08-09 | D194: -56026.35 | V194: 5746102.64 | W194: 4502037.75
B195: 2018-08-10 | D195: -1002.47 | V195: 5746102.64 | W195: 4501035.28
B196: 2018-08-11 | D196: -22809.59 | V196: =V195+C196 -> 5746102.64 | W196: =W195+D196 -> 4478225.69
B197: =B196+1 -> 2018-08-12 | D197: -251033.69 | V197: 5746102.64 | W197: 4227192
B198: 2018-08-13 | V198: 5746102.64 | W198: 4227192
B199: 2018-08-14 | C199: -2559670.6 | D199: -218584.69 | V199: 3186432.04 | W199: 4008607.31
B200: 2018-08-15 | D200: -84370.98 | V200: 3186432.04 | W200: 3924236.33
... 138 more rows

Sheet schema modelu
C6: Vstupní data
C15: Výběr dat
C22: Moduly
C29: Výstupy
D43: Výnosy/Náklady | H43: Plán Výnosy/Náklady | K43: Příjmy/Výdaje | O43: Plán Příjmy/Výdaje
